Workbook

Sheet Datos Asegurado
A2: Cotización | H2: Integrantes adicionales a cotizar
A4: 1. Ingrese los datos del asegurado | K4: Fecha de Nacimiento
H5: Número | I5: Relación | J5: Género | K5: Día | L5: Mes | M5: Año | N5: Edad
B6: Fecha Cotización: | C6: =TODAY() -> 2025-07-03 | H6: 1 | I6: Seleccione una opción | J6: Masculino | K6: 10 | L6: 06 | M6: 2026 | N6: 0
B7: Nombre del titular: | C7: JV | H7: 2 | I7: Seleccione una opción | J7: Masculino | K7: 10 | L7: 06 | M7: 2026 | N7: 0
B8: Edad del titular: | C8: 18 | H8: 3 | I8: Seleccione una opción | J8: Masculino | K8: 10 | L8: 06 | M8: 2026 | N8: 0
B9: Género: | C9: Femenino | H9: 4 | I9: Seleccione una opción | J9: Masculino | K9: 10 | L9: 06 | M9: 2026 | N9: 0
H10: 5 | I10: Seleccione una opción | J10: Masculino | K10: 10 | L10: 06 | M10: 2026 | N10: 0
B11: Lugar de residencia: | C11: Baja California Norte | D11: Zona: | E11: =VLOOKUP(C11,Master!B3:C35,2,FALSE) -> Zona 1 | H11: 6 | I11: Seleccione una opción | J11: Masculino | K11: 10 | L11: 06 | M11: 2026 | N11: 0
H12: 7 | I12: Seleccione una opción | J12: Masculino | K12: 10 | L12: 06 | M12: 2026 | N12: 0
B13: Número de integrantes adicionales a cotizar: | C13: 8 | H13: 8 | I13: Seleccione una opción | J13: Masculino | K13: 10 | L13: 06 | M13: 2026 | N13: 0
A16: 2. Datos del agente
B18: Nombre del agente:
B19: Agencia:
A22: 3. Datos de la póliza
B24: Tipo de cliente: | C24: Nuevo negocio
B26: Zona: | C26: ='Datos Asegurado'!E11 -> Zona 1
B27: Suma asegurada (mxn): | C27: 10000000
D28: Maternidad
B29: Deducible (mxn): | C29: 35000 | D29: Titular: | E29: Si
D30: Conyuge: | E30: No
B31: Coaseguro: | C31: 0.1 | E31: No
D32: Asistencia en el extranjero: | E32: Si
D33: Cobertura de enfermedades catastróficas en el extranjero | E33: No | H33: =IF(C8>=18,C13+1,0) -> 9 | I33: =H33*5800 -> 52200
E36: No
A38: 4. Costo Poliza | H38: 5. Compara
A40: Concepto | C40: Anual | D40: Semestral | E40: Trimestral | F40: Mensual | I40: Guardar para comparar | K40: Limpiar
B41: Prima del asegurado titular: | C41: =MasterBase!C10 -> 19859 | D41: =(C41*(IF($C$33="Si",4.5%,4.5%))+C41) -> 20752.655 | E41: =(C41*(IF($C$35="Si",7.5%,7.5%))+C41) -> 21348.425 | F41: =(C41*(IF($E$36="Si",9%,9%))+C41) -> 21646.31
B42: Prima cónyuge: | C42: =MasterBase!C24 -> 0 | D42: 0 | E42: 0 | F42: 0
B43: Prima hijo(s): | C43: =MasterBase!G24 -> 0 | D43: 0 | E43: 0 | F43: 0
B44: Dependientes económicos | C44: =MasterBase!K24 -> 0 | D44: 0 | E44: 0 | F44: 0
B45: Asistencia en el extranjero: | C45: =IF($E$32="Si",1632,0) -> 1632 | D45: 1705.44 | E45: 1754.4 | F45: 1778.88
B46: Cobertura de enfermedades catastróficas en el extranjero | C46: =IF(AND($E$33="Si",AND(OR(C27=20000000,C27=50000000),OR(C29=35000,C29=55000,C29=75000,C29=115000,C29=200000))),I33,"N/A") -> N/A | D46: =IFERROR((C46*(IF($C$33="Si",4.5%,4.5%))+C46),"N/A") -> N/A | E46: =IFERROR((C46*(IF($C$35="Si",7.5%,7.5%))+C46),"N/A") -> N/A | F46: =IFERROR((C46*(IF($E$36="Si",9%,9%))+C46),"N/A") -> N/A
B47: Total Prima: | C47: =SUM(C41:C46) -> 21491 | D47: =SUM(D41:D46) -> 22458.095 | E47: =SUM(E41:E46) -> 23102.825 | F47: 23425.19
B48: Descuento asistencia en el extranjero | C48: =IF($E$32="Si",IF($C$24="transfer Bupa Internacional",0,0),0) -> 0 | D48: =IF($E$32="Si",IF($C$24="transfer Bupa Internacional",0,0),0) -> 0 | E48: =IF($E$32="Si",IF($C$24="transfer Bupa Internacional",0,0),0) -> 0 | F48: =IF($E$32="Si",IF($C$24="transfer Bupa Internacional",0,0),0) -> 0
B49: Derecho de póliza: | C49: =Master!U3 -> 1600 | D49: =C49 -> 1600 | E49: =C49 -> 1600 | F49: =C49 -> 1600
B50: IVA (16%) | C50: =(C47+C49) * 16% -> 3694.56 | D50: =(D47+D49) * 16% -> 3849.2952 | E50: =(E47+E49) * 16% -> 3952.452 | F50: =(F47+F49) * 16% -> 4004.0304
B51: Costo total: | C51: =IFERROR(C49+C50+C46+C47+C48,C49+C50+C47+C48) -> 26785.56 | D51: =IFERROR(D49+D50+D46+D47+D48,D49+D50+D47+D48) -> 27907.3902 | E51: =IFERROR(E49+E50+E46+E47+E48,E49+E50+E47+E48) -> 28655.277 | F51: 29029.2204
B52: Primer Pago: | C52: =C51 -> 26785.56 | D52: =(D47/2+D49)*1.16 -> 14881.6951 | E52: =(E47/4+E49)*1.16 -> 8555.81925 | F52: =(F47/12+F49)*1.16 -> 4120.435033
B53: Pagos Subsecuentes: | D53: =(D47/2)*1.16 -> 13025.6951 | E53: =(E47/4)*1.16 -> 6699.81925 | F53: =(F47/12)*1.16 -> 2264.435033

Sheet Instrucciones

Sheet Comparativo
B2: Datos de usuario
C4: Fecha Cotización: | D4: 2024-05-05
C5: Nombre del titular: | D5: JUAN VIAL
C6: Edad del titular: | D6: 18
C7: Género: | D7: Masculino
C9: Lugar de residencia: | D9: Sonora | E9: Zona: | F9: Zona 1
C11: Número de integrantes adicionales a cotizar: | D11: 0
B16: Datos de póliza | I16: Opción 1
J17: Datos de cotización
C18: Tipo de cliente: | D18: Transfer Bupa Internacional | J18: Concepto | L18: Anual | M18: Semestral | N18: Trimestral | O18: Mensual
K19: Prima del asegurado titular: | L19: 22955 | M19: 23987.975 | N19: 24676.625 | O19: 25020.95
C20: Zona: | D20: Zona 1 | K20: Prima cónyuge: | L20: 10052 | M20: 10504.34 | N20: 10805.9 | O20: 10956.68
C21: Suma asegurada (mxn): | D21: 20000000 | K21: Prima hijo(s): | L21: 10052 | M21: 10504.34 | N21: 10805.9 | O21: 10956.68
E22: Maternidad | K22: Dependientes económicos | L22: 0 | M22: 0 | N22: 0 | O22: 0
C23: Deducible (mxn): | D23: 55000 | E23: Titular: | F23: Si | K23: Asistencia en el extranjero: | L23: 1632 | M23: 1705.44 | N23: 1754.4 | O23: 1778.88
E24: Conyuge: | F24: No | K24: Cobertura de enfermedades catastróficas en el extranjero | L24: 5800 | M24: 6061 | N24: 6235 | O24: 6322
C25: Coaseguro: | D25: 0.1 | F25: No | K25: Total Prima: | L25: 50491 | M25: 52763.095 | N25: 54277.825 | O25: 55035.19
E26: Asistencia en el extranjero: | F26: Si | K26: Descuento asistencia en el extranjero | L26: 0 | M26: 0 | N26: 0 | O26: 0
E27: Cobertura de enfermedades catastróficas en el extranjero | F27: Si | K27: Derecho de póliza: | L27: 1600 | M27: 1600 | N27: 1600 | O27: 1600
K28: IVA (16%) | L28: 8334.56 | M28: 8698.0952 | N28: 8940.452 | O28: 9061.6304
K29: Costo total: | L29: 66225.56 | M29: 69122.1902 | N29: 71053.277 | O29: 72018.8204
K30: Primer Pago: | L30: 66225.56 | M30: 32458.5951 | N30: 17596.56925 | O30: 7176.068367
K31: Pagos Subsecuentes: | M31: 30602.5951 | N31: 15740.56925 | O31: 5320.068367
B32: Datos de póliza
C34: Tipo de cliente: | D34: Transfer Bupa Internacional | J34: Concepto | L34: Anual | M34: Semestral | N34: Trimestral | O34: Mensual
K35: Prima del asegurado titular: | L35: 22955 | M35: 23987.975 | N35: 24676.625 | O35: 25020.95
C36: Zona: | D36: Zona 1 | K36: Prima cónyuge: | L36: 10052 | M36: 10504.34 | N36: 10805.9 | O36: 10956.68
C37: Suma asegurada (mxn): | D37: 20000000 | K37: Prima hijo(s): | L37: 10052 | M37: 10504.34 | N37: 10805.9 | O37: 10956.68
E38: Maternidad | K38: Dependientes económicos | L38: 0 | M38: 0 | N38: 0 | O38: 0
C39: Deducible (mxn): | D39: 55000 | E39: Titular: | F39: Si | K39: Asistencia en el extranjero: | L39: 1632 | M39: 1705.44 | N39: 1754.4 | O39: 1778.88
E40: Conyuge: | F40: No | K40: Cobertura de enfermedades catastróficas en el extranjero | L40: 5800 | M40: 6061 | N40: 6235 | O40: 6322
C41: Coaseguro: | D41: 0.1 | F41: No | K41: Total Prima: | L41: 50491 | M41: 52763.095 | N41: 54277.825 | O41: 55035.19
E42: Asistencia en el extranjero: | F42: Si | K42: Descuento asistencia en el extranjero | L42: 0 | M42: 0 | N42: 0 | O42: 0
E43: Cobertura de enfermedades catastróficas en el extranjero | F43: Si | K43: Derecho de póliza: | L43: 1600 | M43: 1600 | N43: 1600 | O43: 1600
K44: IVA (16%) | L44: 8334.56 | M44: 8698.0952 | N44: 8940.452 | O44: 9061.6304
K45: Costo total: | L45: 66225.56 | M45: 69122.1902 | N45: 71053.277 | O45: 72018.8204
K46: Primer Pago: | L46: 66225.56 | M46: 32458.5951 | N46: 17596.56925 | O46: 7176.068367
K47: Pagos Subsecuentes: | M47: 30602.5951 | N47: 15740.56925 | O47: 5320.068367
B48: Datos de póliza
C50: Tipo de cliente: | D50: Transfer Bupa Internacional | J50: Concepto | L50: Anual | M50: Semestral | N50: Trimestral | O50: Mensual
K51: Prima del asegurado titular: | L51: 22955 | M51: 23987.975 | N51: 24676.625 | O51: 25020.95
C52: Zona: | D52: Zona 1 | K52: Prima cónyuge: | L52: 10052 | M52: 10504.34 | N52: 10805.9 | O52: 10956.68
C53: Suma asegurada (mxn): | D53: 20000000 | K53: Prima hijo(s): | L53: 10052 | M53: 10504.34 | N53: 10805.9 | O53: 10956.68
E54: Maternidad | K54: Dependientes económicos | L54: 0 | M54: 0 | N54: 0 | O54: 0
C55: Deducible (mxn): | D55: 55000 | E55: Titular: | F55: Si | K55: Asistencia en el extranjero: | L55: 1632 | M55: 1705.44 | N55: 1754.4 | O55: 1778.88
E56: Conyuge: | F56: No | K56: Cobertura de enfermedades catastróficas en el extranjero | L56: 5800 | M56: 6061 | N56: 6235 | O56: 6322
C57: Coaseguro: | D57: 0.1 | F57: No | K57: Total Prima: | L57: 50491 | M57: 52763.095 | N57: 54277.825 | O57: 55035.19
E58: Asistencia en el extranjero: | F58: Si | K58: Descuento asistencia en el extranjero | L58: 0 | M58: 0 | N58: 0 | O58: 0
E59: Cobertura de enfermedades catastróficas en el extranjero | F59: Si | K59: Derecho de póliza: | L59: 1600 | M59: 1600 | N59: 1600 | O59: 1600
K60: IVA (16%) | L60: 8334.56 | M60: 8698.0952 | N60: 8940.452 | O60: 9061.6304
K61: Costo total: | L61: 66225.56 | M61: 69122.1902 | N61: 71053.277 | O61: 72018.8204
K62: Primer Pago: | L62: 66225.56 | M62: 32458.5951 | N62: 17596.56925 | O62: 7176.068367
K63: Pagos Subsecuentes: | M63: 30602.5951 | N63: 15740.56925 | O63: 5320.068367

Sheet Template PDF
B15: Cotización
B17: Datos Titular
B18: Nombre del titular: | C18: ='Datos Asegurado'!C7 -> JV | D18: Nombre Agente: | E18: ='Datos Asegurado'!C18 -> 0
B19: Edad: | C19: ='Datos Asegurado'!C8 -> 18 | D19: Agencia: | E19: ='Datos Asegurado'!C19 -> 0
B20: Género: | C20: ='Datos Asegurado'!C9 -> Femenino | D20: ='Datos Asegurado'!B6 -> Fecha Cotización: | E20: ='Datos Asegurado'!C6 -> 2025-07-03
B21: Lugar de residencia: | C21: ='Datos Asegurado'!C11 -> Baja California Norte
B22: Número de integrantes cotizados: | C22: ='Datos Asegurado'!C13+1 -> 9
B24: Características de la Póliza
B25: Suma asegurada (mxn): | C25: ='Datos Asegurado'!C27 -> 10000000
B26: Deducible (mxn): | C26: ='Datos Asegurado'!C29 -> 35000
B27: Coaseguro | C27: ='Datos Asegurado'!C31 -> 0.1
B28: Tipo de cliente: | C28: ='Datos Asegurado'!C24:D24 -> Nuevo negocio
B29: ='Datos Asegurado'!D28 -> Maternidad | C29: ='Datos Asegurado'!D29 -> Titular: | D29: ='Datos Asegurado'!E29 -> Si
C30: ='Datos Asegurado'!D30 -> Conyuge: | D30: ='Datos Asegurado'!E30 -> No
B32: Costo Poliza
B33: Concepto | C33: Anual | D33: Semestral | E33: Trimestral | F33: Mensual
B34: ='Datos Asegurado'!B41 -> Prima del asegurado titular: | C34: ='Datos Asegurado'!C41 -> 19859 | D34: ='Datos Asegurado'!D41 -> 20752.655 | E34: ='Datos Asegurado'!E41 -> 21348.425 | F34: ='Datos Asegurado'!F41 -> 21646.31
B35: ='Datos Asegurado'!B42 -> Prima cónyuge: | C35: ='Datos Asegurado'!C42 -> 0 | D35: ='Datos Asegurado'!D42 -> 0 | E35: ='Datos Asegurado'!E42 -> 0 | F35: ='Datos Asegurado'!F42 -> 0
B36: ='Datos Asegurado'!B43 -> Prima hijo(s): | C36: ='Datos Asegurado'!C43 -> 0 | D36: ='Datos Asegurado'!D43 -> 0 | E36: ='Datos Asegurado'!E43 -> 0 | F36: ='Datos Asegurado'!F43 -> 0
B37: ='Datos Asegurado'!B44 -> Dependientes económicos | C37: ='Datos Asegurado'!C44 -> 0 | D37: ='Datos Asegurado'!D44 -> 0 | E37: ='Datos Asegurado'!E44 -> 0 | F37: ='Datos Asegurado'!F44 -> 0
B38: ='Datos Asegurado'!B45 -> Asistencia en el extranjero: | C38: ='Datos Asegurado'!C45 -> 1632 | D38: ='Datos Asegurado'!D45 -> 1705.44 | E38: ='Datos Asegurado'!E45 -> 1754.4 | F38: ='Datos Asegurado'!F45 -> 1778.88
B39: ='Datos Asegurado'!B46 -> Cobertura de enfermedades catastróficas en el extranjero | C39: ='Datos Asegurado'!C46 -> N/A | D39: ='Datos Asegurado'!D46 -> N/A | E39: ='Datos Asegurado'!E46 -> N/A | F39: ='Datos Asegurado'!F46 -> N/A
B40: ='Datos Asegurado'!B47 -> Total Prima: | C40: ='Datos Asegurado'!C47 -> 21491 | D40: ='Datos Asegurado'!D47 -> 22458.095 | E40: ='Datos Asegurado'!E47 -> 23102.825 | F40: ='Datos Asegurado'!F47 -> 23425.19
B41: ='Datos Asegurado'!B48 -> Descuento asistencia en el extranjero | C41: ='Datos Asegurado'!C48 -> 0 | D41: ='Datos Asegurado'!D48 -> 0 | E41: ='Datos Asegurado'!E48 -> 0 | F41: ='Datos Asegurado'!F48 -> 0
B42: ='Datos Asegurado'!B49 -> Derecho de póliza: | C42: ='Datos Asegurado'!C49 -> 1600 | D42: ='Datos Asegurado'!D49 -> 1600 | E42: ='Datos Asegurado'!E49 -> 1600 | F42: ='Datos Asegurado'!F49 -> 1600
B43: ='Datos Asegurado'!B50 -> IVA (16%) | C43: ='Datos Asegurado'!C50 -> 3694.56 | D43: ='Datos Asegurado'!D50 -> 3849.2952 | E43: ='Datos Asegurado'!E50 -> 3952.452 | F43: ='Datos Asegurado'!F50 -> 4004.0304
B44: ='Datos Asegurado'!B51 -> Costo total: | C44: ='Datos Asegurado'!C51 -> 26785.56 | D44: ='Datos Asegurado'!D51 -> 27907.3902 | E44: ='Datos Asegurado'!E51 -> 28655.277 | F44: ='Datos Asegurado'!F51 -> 29029.2204
B45: ='Datos Asegurado'!B52 -> Primer Pago: | C45: ='Datos Asegurado'!C52 -> 26785.56 | D45: ='Datos Asegurado'!D52 -> 14881.6951 | E45: ='Datos Asegurado'!E52 -> 8555.81925 | F45: ='Datos Asegurado'!F52 -> 4120.435033
B46: ='Datos Asegurado'!B53 -> Pagos Subsecuentes: | C46: ='Datos Asegurado'!C53 -> 0 | D46: ='Datos Asegurado'!D53 -> 13025.6951 | E46: ='Datos Asegurado'!E53 -> 6699.81925 | F46: ='Datos Asegurado'!F53 -> 2264.435033
B51: Tarifas válidas al 30 de junio 2026
B53: Las pólizas contratadas cuentan con limitaciones y exclusiones las cuáles pueden ser consultadas en www.bupasalud.com.mx . Para más información, llámanos al 55 5202-1701 ext 4 o envíanos un correo a: ventasdirectas@bupa.com.mx
B54: La presente cotización es de carácter informativo, no constituye una solicitud de seguro y/o el monto de la prima definitiva y/o las condiciones de la misma y/o una oferta de aseguramiento en términos del artículo 5to de la Ley Sobre el Contrato de Seguro. La emisión de la póliza así como posibles cambios en la tarifa están sujetos a valoración del riesgo de acuerdo con las políticas de Suscripción de Bupa México y es susceptible de modificaciones, por lo que Bupa podrá aceptar o negar el aseguramiento del riesgo propuesto.

Sheet Template PDF Comparativo
B15: Comparativo Cotizaciones
B17: Nombre del titular | C17: =Comparativo!D5 -> JUAN VIAL | D17: ='Datos Asegurado'!B18 -> Nombre del agente: | E17: =IF('Datos Asegurado'!C18=0,"",'Datos Asegurado'!C18) -> 
B18: Edad | C18: ='Datos Asegurado'!C8 -> 18 | D18: ='Datos Asegurado'!B19 -> Agencia: | E18: =IF('Datos Asegurado'!C19=0,"",'Datos Asegurado'!C19) -> 
B19: Género | C19: ='Datos Asegurado'!C9 -> Femenino | D19: ='Datos Asegurado'!B6 -> Fecha Cotización: | E19: ='Datos Asegurado'!C6 -> 2025-07-03
B20: Lugar de residencia | C20: ='Datos Asegurado'!C11 -> Baja California Norte
B21: Número de integrantes cotizados: | C21: ='Datos Asegurado'!C13+1 -> 9
B23: Opción 1
B24: Suma asegurada (mxn) | C24: =Comparativo!D21 -> 20000000 | D24: Coaseguro | E24: =Comparativo!D25 -> 0.1
B25: Deducible (mxn) | C25: =Comparativo!D23 -> 55000 | D25: Tipo de cliente | E25: =Comparativo!D18 -> Transfer Bupa Internacional
B26: =Comparativo!E22 -> Maternidad | C26: =CONCATENATE(Comparativo!E23," ",Comparativo!F23) -> Titular: Si | E26: =CONCATENATE(Comparativo!E24," ",Comparativo!F24) -> Conyuge: No
B28: Concepto | C28: Anual | D28: Semestral | E28: Trimestral | F28: Mensual
B29: =Comparativo!K19 -> Prima del asegurado titular: | C29: =Comparativo!L19 -> 22955 | D29: =Comparativo!M19 -> 23987.975 | E29: =Comparativo!N19 -> 24676.625 | F29: =Comparativo!O19 -> 25020.95
B30: =Comparativo!K20 -> Prima cónyuge: | C30: =Comparativo!L20 -> 10052 | D30: =Comparativo!M20 -> 10504.34 | E30: =Comparativo!N20 -> 10805.9 | F30: =Comparativo!O20 -> 10956.68
B31: =Comparativo!K21 -> Prima hijo(s): | C31: =Comparativo!L21 -> 10052 | D31: =Comparativo!M21 -> 10504.34 | E31: =Comparativo!N21 -> 10805.9 | F31: =Comparativo!O21 -> 10956.68
B32: =Comparativo!K22 -> Dependientes económicos | C32: =Comparativo!L22 -> 0 | D32: =Comparativo!M22 -> 0 | E32: =Comparativo!N22 -> 0 | F32: =Comparativo!O22 -> 0
B33: =Comparativo!K23 -> Asistencia en el extranjero: | C33: =Comparativo!L23 -> 1632 | D33: =Comparativo!M23 -> 1705.44 | E33: =Comparativo!N23 -> 1754.4 | F33: =Comparativo!O23 -> 1778.88
B34: =Comparativo!K24 -> Cobertura de enfermedades catastróficas en el extranjero | C34: =Comparativo!L24 -> 5800 | D34: =Comparativo!M24 -> 6061 | E34: =Comparativo!N24 -> 6235 | F34: =Comparativo!O24 -> 6322
B35: =Comparativo!K25 -> Total Prima: | C35: =Comparativo!L25 -> 50491 | D35: =Comparativo!M25 -> 52763.095 | E35: =Comparativo!N25 -> 54277.825 | F35: =Comparativo!O25 -> 55035.19
B36: =Comparativo!K26 -> Descuento asistencia en el extranjero | C36: =Comparativo!L26 -> 0 | D36: =Comparativo!M26 -> 0 | E36: =Comparativo!N26 -> 0 | F36: =Comparativo!O26 -> 0
B37: =Comparativo!K27 -> Derecho de póliza: | C37: =Comparativo!L27 -> 1600 | D37: =Comparativo!M27 -> 1600 | E37: =Comparativo!N27 -> 1600 | F37: =Comparativo!O27 -> 1600
B38: =Comparativo!K28 -> IVA (16%) | C38: =Comparativo!L28 -> 8334.56 | D38: =Comparativo!M28 -> 8698.0952 | E38: =Comparativo!N28 -> 8940.452 | F38: =Comparativo!O28 -> 9061.6304
B39: =Comparativo!K29 -> Costo total: | C39: =Comparativo!L29 -> 66225.56 | D39: =Comparativo!M29 -> 69122.1902 | E39: =Comparativo!N29 -> 71053.277 | F39: =Comparativo!O29 -> 72018.8204
B40: =Comparativo!K30 -> Primer Pago: | C40: =Comparativo!L30 -> 66225.56 | D40: =Comparativo!M30 -> 32458.5951 | E40: =Comparativo!N30 -> 17596.56925 | F40: =Comparativo!O30 -> 7176.068367
B41: =Comparativo!K31 -> Pagos Subsecuentes: | C41: =Comparativo!L31 -> 0 | D41: =Comparativo!M31 -> 30602.5951 | E41: =Comparativo!N31 -> 15740.56925 | F41: =Comparativo!O31 -> 5320.068367
B43: Opción 2
B44: Suma asegurada (mxn) | C44: =Comparativo!D37 -> 20000000 | D44: Coaseguro | E44: =Comparativo!D41 -> 0.1
B45: Deducible (mxn) | C45: =Comparativo!D39 -> 55000 | D45: Tipo de cliente | E45: =Comparativo!D34 -> Transfer Bupa Internacional
B46: =Comparativo!E38 -> Maternidad | C46: =CONCATENATE(Comparativo!E39," ",Comparativo!F39) -> Titular: Si | E46: =CONCATENATE(Comparativo!E40," ",Comparativo!F40) -> Conyuge: No
B48: Concepto | C48: Anual | D48: Semestral | E48: Trimestral | F48: Mensual
B49: =Comparativo!K35 -> Prima del asegurado titular: | C49: =Comparativo!L35 -> 22955 | D49: =Comparativo!M35 -> 23987.975 | E49: =Comparativo!N35 -> 24676.625 | F49: =Comparativo!O35 -> 25020.95
B50: =Comparativo!K36 -> Prima cónyuge: | C50: =Comparativo!L36 -> 10052 | D50: =Comparativo!M36 -> 10504.34 | E50: =Comparativo!N36 -> 10805.9 | F50: =Comparativo!O36 -> 10956.68
B51: =Comparativo!K37 -> Prima hijo(s): | C51: =Comparativo!L37 -> 10052 | D51: =Comparativo!M37 -> 10504.34 | E51: =Comparativo!N37 -> 10805.9 | F51: =Comparativo!O37 -> 10956.68
B52: =Comparativo!K38 -> Dependientes económicos | C52: =Comparativo!L38 -> 0 | D52: =Comparativo!M38 -> 0 | E52: =Comparativo!N38 -> 0 | F52: =Comparativo!O38 -> 0
B53: =Comparativo!K39 -> Asistencia en el extranjero: | C53: =Comparativo!L39 -> 1632 | D53: =Comparativo!M39 -> 1705.44 | E53: =Comparativo!N39 -> 1754.4 | F53: =Comparativo!O39 -> 1778.88
B54: =Comparativo!K40 -> Cobertura de enfermedades catastróficas en el extranjero | C54: =Comparativo!L40 -> 5800 | D54: =Comparativo!M40 -> 6061 | E54: =Comparativo!N40 -> 6235 | F54: =Comparativo!O40 -> 6322
B55: =Comparativo!K41 -> Total Prima: | C55: =Comparativo!L41 -> 50491 | D55: =Comparativo!M41 -> 52763.095 | E55: =Comparativo!N41 -> 54277.825 | F55: =Comparativo!O41 -> 55035.19
B56: =Comparativo!K42 -> Descuento asistencia en el extranjero | C56: =Comparativo!L42 -> 0 | D56: =Comparativo!M42 -> 0 | E56: =Comparativo!N42 -> 0 | F56: =Comparativo!O42 -> 0
B57: =Comparativo!K43 -> Derecho de póliza: | C57: =Comparativo!L43 -> 1600 | D57: =Comparativo!M43 -> 1600 | E57: =Comparativo!N43 -> 1600 | F57: =Comparativo!O43 -> 1600
B58: =Comparativo!K44 -> IVA (16%) | C58: =Comparativo!L44 -> 8334.56 | D58: =Comparativo!M44 -> 8698.0952 | E58: =Comparativo!N44 -> 8940.452 | F58: =Comparativo!O44 -> 9061.6304
B59: =Comparativo!K45 -> Costo total: | C59: =Comparativo!L45 -> 66225.56 | D59: =Comparativo!M45 -> 69122.1902 | E59: =Comparativo!N45 -> 71053.277 | F59: =Comparativo!O45 -> 72018.8204
B60: =Comparativo!K46 -> Primer Pago: | C60: =Comparativo!L46 -> 66225.56 | D60: =Comparativo!M46 -> 32458.5951 | E60: =Comparativo!N46 -> 17596.56925 | F60: =Comparativo!O46 -> 7176.068367
B61: =Comparativo!K47 -> Pagos Subsecuentes: | C61: =Comparativo!L47 -> 0 | D61: =Comparativo!M47 -> 30602.5951 | E61: =Comparativo!N47 -> 15740.56925 | F61: =Comparativo!O47 -> 5320.068367
B63: Opción 3
B64: Suma asegurada (mxn) | C64: =Comparativo!D53 -> 20000000 | D64: Coaseguro | E64: =Comparativo!D57 -> 0.1
B65: Deducible (mxn) | C65: =Comparativo!D55 -> 55000 | D65: Tipo de cliente | E65: =Comparativo!D50 -> Transfer Bupa Internacional
B66: =Comparativo!E54 -> Maternidad | C66: =CONCATENATE(Comparativo!E55," ",Comparativo!F55) -> Titular: Si | E66: =CONCATENATE(Comparativo!E56," ",Comparativo!F56) -> Conyuge: No
B68: Concepto | C68: Anual | D68: Semestral | E68: Trimestral | F68: Mensual
B69: =Comparativo!K51 -> Prima del asegurado titular: | C69: =Comparativo!L51 -> 22955 | D69: =Comparativo!M51 -> 23987.975 | E69: =Comparativo!N51 -> 24676.625 | F69: =Comparativo!O51 -> 25020.95
B70: =Comparativo!K52 -> Prima cónyuge: | C70: =Comparativo!L52 -> 10052 | D70: =Comparativo!M52 -> 10504.34 | E70: =Comparativo!N52 -> 10805.9 | F70: =Comparativo!O52 -> 10956.68
B71: =Comparativo!K53 -> Prima hijo(s): | C71: =Comparativo!L53 -> 10052 | D71: =Comparativo!M53 -> 10504.34 | E71: =Comparativo!N53 -> 10805.9 | F71: =Comparativo!O53 -> 10956.68
B72: =Comparativo!K54 -> Dependientes económicos | C72: =Comparativo!L54 -> 0 | D72: =Comparativo!M54 -> 0 | E72: =Comparativo!N54 -> 0 | F72: =Comparativo!O54 -> 0
B73: =Comparativo!K55 -> Asistencia en el extranjero: | C73: =Comparativo!L55 -> 1632 | D73: =Comparativo!M55 -> 1705.44 | E73: =Comparativo!N55 -> 1754.4 | F73: =Comparativo!O55 -> 1778.88
B74: =Comparativo!K56 -> Cobertura de enfermedades catastróficas en el extranjero | C74: =Comparativo!L56 -> 5800 | D74: =Comparativo!M56 -> 6061 | E74: =Comparativo!N56 -> 6235 | F74: =Comparativo!O56 -> 6322
B75: =Comparativo!K57 -> Total Prima: | C75: =Comparativo!L57 -> 50491 | D75: =Comparativo!M57 -> 52763.095 | E75: =Comparativo!N57 -> 54277.825 | F75: =Comparativo!O57 -> 55035.19
B76: =Comparativo!K58 -> Descuento asistencia en el extranjero | C76: =Comparativo!L58 -> 0 | D76: =Comparativo!M58 -> 0 | E76: =Comparativo!N58 -> 0 | F76: =Comparativo!O58 -> 0
B77: =Comparativo!K59 -> Derecho de póliza: | C77: =Comparativo!L59 -> 1600 | D77: =Comparativo!M59 -> 1600 | E77: =Comparativo!N59 -> 1600 | F77: =Comparativo!O59 -> 1600
B78: =Comparativo!K60 -> IVA (16%) | C78: =Comparativo!L60 -> 8334.56 | D78: =Comparativo!M60 -> 8698.0952 | E78: =Comparativo!N60 -> 8940.452 | F78: =Comparativo!O60 -> 9061.6304
B79: =Comparativo!K61 -> Costo total: | C79: =Comparativo!L61 -> 66225.56 | D79: =Comparativo!M61 -> 69122.1902 | E79: =Comparativo!N61 -> 71053.277 | F79: =Comparativo!O61 -> 72018.8204
B80: =Comparativo!K62 -> Primer Pago: | C80: =Comparativo!L62 -> 66225.56 | D80: =Comparativo!M62 -> 32458.5951 | E80: =Comparativo!N62 -> 17596.56925 | F80: =Comparativo!O62 -> 7176.068367
B81: =Comparativo!K63 -> Pagos Subsecuentes: | C81: =Comparativo!L63 -> 0 | D81: =Comparativo!M63 -> 30602.5951 | E81: =Comparativo!N63 -> 15740.56925 | F81: =Comparativo!O63 -> 5320.068367
B83: Tarifas expresadas en $MXN – Tarifas validas al 30 de junio del 2026
B84: Este presupuesto solamente tiene carácter informativo y en ningún momento expresa compromiso legal para suministrarle cobertura de seguro. La emisión de una pólizade seguro Bupa esta sujeta a todas las evaluaciones de riesgo por parte de Bupa y a la recepción de todos los pagos de prima requeridos.
B86: Si tu residencia es zona 2, pero quieres tener acceso a zona 1; puedes también contratarlo. De acuerdo a lo señalado en condiciones generales de tu producto.

Sheet Brochure

Sheet Versión
A2: Actualización: | B2: 27 de Junio 2025 actualización de tarifas

Sheet Objetos Estructura (hidden)
A1: Estructuras Maestras
A3: Estructura asegurado
B4: Seleccione una opción | C4: Masculino | D4: 10 | E4: 06 | F4: 2026

Sheet Master (hidden)
A1: Datos Maestros | R1: Prima Base | AC1: Prima Riesgo Nuevo NN Eliminacion periodos de espera | AE1: Prima Tarifa Nuevo Producto NN Eliminacion periodos de espera | AG1: Prima Tarifa Nuevo Producto Ren Eliminacion periodos de espera | AI1: Tarifa Base, elimación | AJ1: Aceptación Periodos de Espera | AK1: Bupa Internacional | AM1: Aplica descuento nuevo negocio | AN1: Asistencia en el extranjero | AO1: Aplica descuento por pago fraccionado
A2: Genero | B2: Lugares de residencia | C2: Zona | D2: FD Zona | E2: Parentezco | F2: Dias | G2: Meses | H2: Años | I2: Tipo Cliente | J2: Factor descuento | K2: Sumas aseguradas | L2: FD Suma asegurada | M2: Deducibles | N2: Maternidad Aplica | O2: FD Deducible | P2: Coasegurado | Q2: FD Coasegurado | R2: Edad | S2: 40000 | T2: Factor es mujer | U2: Administración | V2: Factor descuento | X2: Recargos | Y2: NN | Z2: Renovacion | AA2: Transfer | AB2: Seguro dental | AC2: Edad | AD2: Valor | AE2: Edad | AF2: Valor | AG2: Edad | AH2: Valor | AI2: Valor | AJ2: Valor | AK2: Valor | AM2: Si | AN2: Si | AO2: Si
A3: Masculino | B3: Aguascalientes | C3: Zona 2 | D3: 0.8 | E3: Seleccione una opción | F3: 01 | G3: 01 | H3: 1947 | I3: Nuevo negocio - con periodos de espera | J3: 0.89 | K3: 5000000 | L3: 0.87262 | M3: 17000 | N3: Si | O3: 1.1146 | P3: 0 | Q3: 1 | R3: 0 | S3: 16257.969 | T3: 2600 | U3: 1600 | V3: Tipo cliente | W3: =VLOOKUP('Datos Asegurado'!C24,Master!I3:J5,2,FALSE) -> 0.95 | X3: Administracion | Y3: 0.15 | Z3: 0.15 | AA3: 0.15 | AB3: 400 | AC3: =R3 -> 0 | AD3: =S3*$W$14+$AB$3 -> 10657.54986 | AE3: =AC3 -> 0 | AF3: =AD3/(1-SUM($Y$3:$Y$5)) -> 17471.39322 | AG3: =AE3 -> 0 | AH3: =AD3/(1-SUM($Z$3:$Z$5)) -> 16652.42166 | AI3: =AF3 -> 17471.39322 | AJ3: =AI3*90% -> 15724.2539 | AK3: =AI3 -> 17471.39322 | AM3: No | AN3: No | AO3: No
A4: Femenino | B4: Baja California Norte | C4: Zona 1 | D4: 1 | E4: Conyuge | F4: 02 | G4: 02 | H4: 1948 | I4: Nuevo negocio | J4: 0.95 | K4: 10000000 | L4: 0.91165 | M4: 35000 | N4: Si | O4: 1.07892 | P4: 0.1 | Q4: 0.94257 | R4: 1 | S4: 14413.02784 | V4: Zona | W4: =VLOOKUP('Datos Asegurado'!C11,Master!B3:D35,3,FALSE) -> 1 | X4: Adquisicion | Y4: 0.2 | Z4: 0.17 | AA4: 0.09 | AC4: 1 | AD4: =S4*$W$14+$AB$3 -> 9493.53141 | AE4: =AC4 -> 1 | AF4: =AD4/(1-SUM($Y$3:$Y$5)) -> 15563.16625 | AG4: =AE4 -> 1 | AH4: =AD4/(1-SUM($Z$3:$Z$5)) -> 14833.64283 | AI4: =AF4 -> 15563.16625 | AJ4: =AI4*90% -> 14006.84962 | AK4: =AI4 -> 15563.16625
B5: Baja California Sur | C5: Zona 1 | D5: 1 | E5: Hij@ | F5: 03 | G5: 03 | H5: 1949 | I5: Transfer Bupa Internacional | J5: 1 | K5: 20000000 | L5: 0.95067 | M5: 55000 | N5: Si | O5: 1.01542 | P5: 0.2 | Q5: 0.91091 | R5: 2 | S5: 12422.51997 | V5: Suma asegurada | W5: =VLOOKUP('Datos Asegurado'!C27,Master!K3:L6,2,FALSE) -> 0.91165 | X5: Utilidad | Y5: 0.04 | Z5: 0.04 | AA5: 0.04 | AC5: 2 | AD5: 8237.671361 | AE5: 2 | AF5: 13504.37928 | AG5: 2 | AH5: 12871.3615 | AI5: 13504.37928 | AJ5: 12153.94135 | AK5: 13504.37928
B6: Campeche | C6: Zona 2 | D6: 0.8 | E6: Dependiente economico | F6: 04 | G6: 04 | H6: 1950 | K6: 50000000 | L6: 1 | M6: 75000 | N6: No | O6: 0.95747 | R6: 3 | S6: 11563.46358 | V6: Deducible | W6: =VLOOKUP('Datos Asegurado'!C29,Master!M3:O11,3,FALSE) -> 1.07892 | X6: Total | Y6: =SUM(Y3:Y5) -> 0.39 | Z6: =SUM(Z3:Z5) -> 0.36 | AA6: =SUM(AA3:AA5) -> 0.28 | AC6: 3 | AD6: 7695.671698 | AE6: 3 | AF6: 12615.85524 | AG6: 3 | AH6: 12024.48703 | AI6: 12615.85524 | AJ6: 11354.26972 | AK6: 12615.85524
B7: Coahuila | C7: Zona 2 | D7: 0.8 | F7: 05 | G7: 05 | H7: 1951 | M7: 115000 | N7: No | O7: 0.82317 | R7: 4 | S7: 10630.92706 | V7: Coasegurado | W7: =VLOOKUP('Datos Asegurado'!C31,Master!P3:Q7,2,FALSE) -> 0.94257 | X7: 1-Total | Y7: =1-Y6 -> 0.61 | Z7: =1-Z6 -> 0.64 | AA7: =1-AA6 -> 0.72 | AC7: 4 | AD7: 7107.311624 | AE7: 4 | AF7: 11651.33053 | AG7: 4 | AH7: 11105.17441 | AI7: 11651.33053 | AJ7: 10486.19748 | AK7: 11651.33053
B8: Colima | C8: Zona 2 | D8: 0.8 | F8: 06 | G8: 06 | H8: 1952 | M8: 200000 | R8: 5 | S8: 10995.29441 | V8: Cobertura Extranjero: (no) | W8: 0.85493 | AC8: 5 | AD8: 7337.199887 | AE8: 5 | AF8: 12028.19654 | AG8: 5 | AH8: 11464.37482 | AI8: 12028.19654 | AJ8: 10825.37688 | AK8: 12028.19654
B9: Chiapas | C9: Zona 2 | D9: 0.8 | F9: 07 | G9: 07 | H9: 1953 | R9: 6 | S9: 11372.15019 | V9: Reducción Honorarios: (Reducido) | W9: 0.9 | AC9: 6 | AD9: 7574.967404 | AE9: 6 | AF9: 12417.97935 | AG9: 6 | AH9: 11835.88657 | AI9: 12417.97935 | AJ9: 11176.18142 | AK9: 12417.97935
B10: Chihuahua | C10: Zona 2 | D10: 0.8 | F10: 08 | G10: 08 | H10: 1954 | R10: 7 | S10: 11761.92243 | V10: Copago Medicamentos: (0) | W10: 1 | AC10: 7 | AD10: 7820.88423 | AE10: 7 | AF10: 12821.12169 | AG10: 7 | AH10: 12220.13161 | AI10: 12821.12169 | AJ10: 11539.00952 | AK10: 12821.12169
B11: Ciudad de Mexico y área metropolitana | C11: Zona 1 | D11: 1 | F11: 09 | G11: 09 | H11: 1955 | R11: 8 | S11: 12165.05382 | V11: Reduccion a Consultas: (25) | W11: 0.98 | AC11: 8 | AD11: 8075.229679 | AE11: 8 | AF11: 13238.08144 | AG11: 8 | AH11: 12617.54637 | AI11: 13238.08144 | AJ11: 11914.2733 | AK11: 13238.08144
B12: Estado de Mexico | C12: Zona 2 | D12: 0.8 | F12: 10 | G12: 10 | H12: 1956 | R12: 9 | S12: 12582.00226 | V12: Re. Renuncia utilidad: (Si) | W12: 0.95 | AC12: 9 | AD12: 8338.292634 | AE12: 9 | AF12: 13669.33219 | AG12: 9 | AH12: 13028.58224 | AI12: 13669.33219 | AJ12: 12302.39897 | AK12: 13669.33219
B13: Durango | C13: Zona 2 | D13: 0.8 | F13: 11 | G13: 11 | H13: 1957 | R13: 10 | S13: 13013.2413 | V13: Re. Adicional Actuarial: (Si) | W13: 0.95 | AC13: 10 | AD13: 8610.371881 | AE13: 10 | AF13: 14115.36374 | AG13: 10 | AH13: 13453.70606 | AI13: 14115.36374 | AJ13: 12703.82737 | AK13: 14115.36374
B14: Guanajuato | C14: Zona 2 | D14: 0.8 | F14: 12 | G14: 12 | H14: 1958 | R14: 11 | S14: 13459.26075 | V14: Factor descuento sin tipo cliente | W14: =W5*W6*W7*W8*W9*W10*W11*W12*W13*W4 -> 0.6309244324 | AC14: 11 | AD14: 8891.776449 | AE14: 11 | AF14: 14576.6827 | AG14: 11 | AH14: 13893.4007 | AI14: 14576.6827 | AJ14: 13119.01443 | AK14: 14576.6827
B15: Guerrero | C15: Zona 2 | D15: 0.8 | F15: 13 | H15: 1959 | R15: 12 | S15: 13920.56719 | V15: Factor descuento con tipo cliente | W15: =W3*W4*W5*W6*W7*W8*W9*W10*W11*W12*W13 -> 0.5993782108 | AC15: 12 | AD15: 9182.825955 | AE15: 12 | AF15: 15053.81304 | AG15: 12 | AH15: 14348.16555 | AI15: 15053.81304 | AJ15: 13548.43174 | AK15: 15053.81304
B16: Hidalgo | C16: Zona 2 | D16: 0.8 | F16: 14 | H16: 1960 | R16: 13 | S16: 14397.68458 | AC16: 13 | AD16: 9483.850972 | AE16: 13 | AF16: 15547.29668 | AG16: 13 | AH16: 14818.51714 | AI16: 15547.29668 | AJ16: 13992.56701 | AK16: 15547.29668
B17: Jalisco | C17: Zona 1 | D17: 1 | F17: 15 | H17: 1961 | R17: 14 | S17: 14891.15482 | AC17: 14 | AD17: 9795.193405 | AE17: 14 | AF17: 16057.69411 | AG17: 14 | AH17: 15304.9897 | AI17: 16057.69411 | AJ17: 14451.9247 | AK17: 16057.69411
B18: Michoacán | C18: Zona 2 | D18: 0.8 | F18: 16 | H18: 1962 | R18: 15 | S18: 15401.5384 | AC18: 15 | AD18: 10117.20687 | AE18: 15 | AF18: 16585.58504 | AG18: 15 | AH18: 15808.13574 | AI18: 16585.58504 | AJ18: 14927.02654 | AK18: 16585.58504
B19: Morelos | C19: Zona 2 | D19: 0.8 | F19: 17 | H19: 1963 | R19: 16 | S19: 15929.41501 | AC19: 16 | AD19: 10450.25712 | AE19: 16 | AF19: 17131.56905 | AG19: 16 | AH19: 16328.52676 | AI19: 17131.56905 | AJ19: 15418.41215 | AK19: 17131.56905
B20: Nayarit | C20: Zona 2 | D20: 0.8 | F20: 18 | H20: 1964 | R20: 17 | S20: 16475.38421 | AC20: 17 | AD20: 10794.72243 | AE20: 17 | AF20: 17696.26628 | AG20: 17 | AH20: 16866.7538 | AI20: 17696.26628 | AJ20: 15926.63965 | AK20: 17696.26628
B21: Nuevo León | C21: Zona 1 | D21: 1 | F21: 19 | H21: 1965 | R21: 18 | S21: 16973.02601 | AC21: 18 | AD21: 11108.6968 | AE21: 18 | AF21: 18210.97837 | AG21: 18 | AH21: 17357.33876 | AI21: 18210.97837 | AJ21: 16389.88053 | AK21: 18210.97837
B22: Oaxaca | C22: Zona 2 | D22: 0.8 | F22: 20 | H22: 1966 | R22: 19 | S22: 17712.20798 | AC22: 19 | AD22: 11575.06477 | AE22: 19 | AF22: 18975.51602 | AG22: 19 | AH22: 18086.0387 | AI22: 18975.51602 | AJ22: 17077.96441 | AK22: 18975.51602
B23: Puebla | C23: Zona 2 | D23: 0.8 | F23: 21 | H23: 1967 | R23: 20 | S23: 18521.78824 | AC23: 20 | AD23: 12085.84873 | AE23: 20 | AF23: 19812.86677 | AG23: 20 | AH23: 18884.13864 | AI23: 19812.86677 | AJ23: 17831.5801 | AK23: 19812.86677
B24: Querétaro | C24: Zona 2 | D24: 0.8 | F24: 22 | H24: 1968 | R24: 21 | S24: 19331.36849 | AC24: 21 | AD24: 12596.63269 | AE24: 21 | AF24: 20650.21753 | AG24: 21 | AH24: 19682.23858 | AI24: 20650.21753 | AJ24: 18585.19578 | AK24: 20650.21753
B25: Quintana Roo Zona 1 | C25: Zona 1 | D25: 1 | F25: 23 | H25: 1969 | R25: 22 | S25: 20091.66995 | AC25: 22 | AD25: 13076.32546 | AE25: 22 | AF25: 21436.59911 | AG25: 22 | AH25: 20431.75853 | AI25: 21436.59911 | AJ25: 19292.9392 | AK25: 21436.59911
B26: Quintana Roo Zona 2 | C26: Zona 2 | D26: 0.8 | F26: 24 | H26: 1970 | R26: 23 | S26: 20957.56883 | AC26: 23 | AD26: 13622.64222 | AE26: 23 | AF26: 22332.20036 | AG26: 23 | AH26: 21285.37846 | AI26: 22332.20036 | AJ26: 20098.98032 | AK26: 22332.20036
B27: San Luis Potosí | C27: Zona 2 | D27: 0.8 | F27: 25 | H27: 1971 | R27: 24 | S27: 21767.14908 | AC27: 24 | AD27: 14133.42618 | AE27: 24 | AF27: 23169.55111 | AG27: 24 | AH27: 22083.4784 | AI27: 23169.55111 | AJ27: 20852.596 | AK27: 23169.55111
B28: Sinaloa | C28: Zona 2 | D28: 0.8 | F28: 26 | H28: 1972 | R28: 25 | S28: 22330.33534 | AC28: 25 | AD28: 14488.75415 | AE28: 25 | AF28: 23752.05599 | AG28: 25 | AH28: 22638.67836 | AI28: 23752.05599 | AJ28: 21376.85039 | AK28: 23752.05599
B29: Sonora | C29: Zona 1 | D29: 1 | F29: 27 | H29: 1973 | R29: 26 | S29: 23196.23422 | AC29: 26 | AD29: 15035.07091 | AE29: 26 | AF29: 24647.65723 | AG29: 26 | AH29: 23492.2983 | AI29: 24647.65723 | AJ29: 22182.89151 | AK29: 24647.65723
B30: Tabasco | C30: Zona 2 | D30: 0.8 | F30: 28 | H30: 1974 | R30: 27 | S30: 24033.97379 | AC30: 27 | AD30: 15563.62127 | AE30: 27 | AF30: 25514.13323 | AG30: 27 | AH30: 24318.15824 | AI30: 25514.13323 | AJ30: 22962.71991 | AK30: 25514.13323
B31: Tamaulipas | C31: Zona 2 | D31: 0.8 | F31: 29 | H31: 1975 | R31: 28 | S31: 24899.87267 | AC31: 28 | AD31: 16109.93803 | AE31: 28 | AF31: 26409.73448 | AG31: 28 | AH31: 25171.77818 | AI31: 26409.73448 | AJ31: 23768.76103 | AK31: 26409.73448
B32: Tlaxcala | C32: Zona 2 | D32: 0.8 | F32: 30 | H32: 1976 | R32: 29 | S32: 25962.88674 | AC32: 29 | AD32: 16780.61958 | AE32: 29 | AF32: 27509.21243 | AG32: 29 | AH32: 26219.7181 | AI32: 27509.21243 | AJ32: 24758.29119 | AK32: 27509.21243
B33: Veracruz | C33: Zona 2 | D33: 0.8 | F33: 31 | H33: 1977 | R33: 30 | S33: 28307.93177 | AC33: 30 | AD33: 18260.16578 | AE33: 30 | AF33: 29934.69801 | AG33: 30 | AH33: 28531.50904 | AI33: 29934.69801 | AJ33: 26941.2282 | AK33: 29934.69801
B34: Yucatán | C34: Zona 2 | D34: 0.8 | H34: 1978 | R34: 31 | S34: 29506.42342 | AC34: 31 | AD34: 19016.32345 | AE34: 31 | AF34: 31174.30074 | AG34: 31 | AH34: 29713.00539 | AI34: 31174.30074 | AJ34: 28056.87067 | AK34: 31174.30074
B35: Zacatecas | C35: Zona 2 | D35: 0.8 | H35: 1979 | R35: 32 | S35: 30690.20966 | AC35: 32 | AD35: 19763.20311 | AE35: 32 | AF35: 32398.69363 | AG35: 32 | AH35: 30880.00486 | AI35: 32398.69363 | AJ35: 29158.82426 | AK35: 32398.69363
H36: 1980 | R36: 33 | S36: 31513.71313 | AC36: 33 | AD36: 20282.77157 | AE36: 33 | AF36: 33250.4452 | AG36: 33 | AH36: 31691.83058 | AI36: 33250.4452 | AJ36: 29925.40068 | AK36: 33250.4452
H37: 1981 | R37: 34 | S37: 32396.03828 | AC37: 34 | AD37: 20839.45206 | AE37: 34 | AF37: 34163.03617 | AG37: 34 | AH37: 32561.64385 | AI37: 34163.03617 | AJ37: 30746.73255 | AK37: 34163.03617
H38: 1982 | R38: 35 | S38: 33212.18904 | AC38: =R38 -> 35 | AD38: 21354.38152 | AE38: 35 | AF38: 35007.18282 | AG38: 35 | AH38: 33366.22112 | AI38: 35007.18282 | AJ38: 31506.46453 | AK38: 35007.18282
H39: 1983 | R39: 36 | S39: 34065.10334 | AC39: 36 | AD39: 21892.50599 | AE39: 36 | AF39: 35889.35409 | AG39: 36 | AH39: 34207.04061 | AI39: 35889.35409 | AJ39: 32300.41868 | AK39: 35889.35409
H40: 1984 | R40: 37 | S40: 34918.01765 | AC40: 37 | AD40: 22430.63047 | AE40: 37 | AF40: 36771.52536 | AG40: 37 | AH40: 35047.86011 | AI40: 36771.52536 | AJ40: 33094.37282 | AK40: 36771.52536
H41: 1985 | R41: 38 | S41: 35734.16841 | AC41: 38 | AD41: 22945.55992 | AE41: 38 | AF41: 37615.67201 | AG41: 38 | AH41: 35852.43738 | AI41: 37615.67201 | AJ41: 33854.10481 | AK41: 37615.67201
H42: 1986 | R42: 39 | S42: 36851.78026 | AC42: 39 | AD42: 23650.68855 | AE42: 39 | AF42: 38771.62057 | AG42: 39 | AH42: 36954.20085 | AI42: 38771.62057 | AJ42: 34894.45851 | AK42: 38771.62057
H43: 1987 | R43: 40 | S43: 37866.45418 | AC43: 40 | AD43: 24290.87111 | AE43: 40 | AF43: 39821.10018 | AG43: 40 | AH43: 37954.48611 | AI43: 39821.10018 | AJ43: 35838.99017 | AK43: 39821.10018
H44: 1988 | R44: 41 | S44: 38866.42268 | AC44: 41 | AD44: 24921.77567 | AE44: 41 | AF44: 40855.36995 | AG44: 41 | AH44: 38940.27448 | AI44: 40855.36995 | AJ44: 36769.83296 | AK44: 40855.36995
H45: 1989 | R45: 42 | S45: 39881.0966 | AC45: 42 | AD45: 25561.95824 | AE45: 42 | AF45: 41904.84957 | AG45: 42 | AH45: 39940.55974 | AI45: 41904.84957 | AJ45: 37714.36461 | AK45: 41904.84957
H46: 1990 | R46: 43 | S46: 41042.82471 | AC46: 43 | AD46: 26294.92088 | AE46: 43 | AF46: 43106.42768 | AG46: 43 | AH46: 41085.81388 | AI46: 43106.42768 | AJ46: 38795.78491 | AK46: 43106.42768
H47: 1991 | R47: 44 | S47: 42241.31636 | AC47: 44 | AD47: 27051.07855 | AE47: 44 | AF47: 44346.03041 | AG47: 44 | AH47: 42267.31024 | AI47: 44346.03041 | AJ47: 39911.42737 | AK47: 44346.03041
H48: 1992 | R48: 45 | S48: 43879.64085 | AC48: 45 | AD48: 28084.7375 | AE48: 45 | AF48: 46040.55327 | AG48: 45 | AH48: 43882.40234 | AI48: 46040.55327 | AJ48: 41436.49795 | AK48: 46040.55327
H49: 1993 | R49: 46 | S49: 45128.03707 | AC49: 46 | AD49: 28872.38117 | AE49: 46 | AF49: 47331.77241 | AG49: 46 | AH49: 45113.09558 | AI49: 47331.77241 | AJ49: 42598.59517 | AK49: 47331.77241
H50: 1994 | R50: 47 | S50: 46316.98584 | AC50: 47 | AD50: 29622.51801 | AE50: 47 | AF50: 48561.50493 | AG50: 47 | AH50: 46285.18438 | AI50: 48561.50493 | AJ50: 43705.35443 | AK50: 48561.50493
H51: 1995 | R51: 48 | S51: 48598.28131 | AC51: 48 | AD51: 31061.84305 | AE51: 48 | AF51: 50921.05419 | AG51: 48 | AH51: 48534.12977 | AI51: 50921.05419 | AJ51: 45828.94877 | AK51: 50921.05419
H52: 1996 | R52: 49 | S52: 50188.5003 | AC52: 49 | AD52: 32065.15107 | AE52: 49 | AF52: 52565.82142 | AG52: 49 | AH52: 50101.79854 | AI52: 52565.82142 | AJ52: 47309.23928 | AK52: 52565.82142
H53: 1997 | R53: 50 | S53: 52090.97479 | AC53: 50 | AD53: 33265.4687 | AE53: 50 | AF53: 54533.55525 | AG53: 50 | AH53: 51977.29485 | AI53: 54533.55525 | AJ53: 49080.19973 | AK53: 54533.55525
H54: 1998 | R54: 51 | S54: 53427.60352 | AC54: 51 | AD54: 34108.78043 | AE54: 51 | AF54: 55916.03349 | AG54: 51 | AH54: 53294.96942 | AI54: 55916.03349 | AJ54: 50324.43014 | AK54: 55916.03349
H55: 1999 | R55: 52 | S55: 55865.80894 | AC55: 52 | AD55: 35647.1038 | AE55: 52 | AF55: 58437.87508 | AG55: 52 | AH55: 55698.59968 | AI55: 58437.87508 | AJ55: 52594.08757 | AK55: 58437.87508
H56: 2000 | R56: 53 | S56: 59037.32981 | AC56: 53 | AD56: 37648.0938 | AE56: 53 | AF56: 61718.18656 | AG56: 53 | AH56: 58825.14656 | AI56: 61718.18656 | AJ56: 55546.3679 | AK56: 61718.18656
H57: 2001 | R57: 54 | S57: 62777.90346 | AC57: 54 | AD57: 40008.11311 | AE57: 54 | AF57: 65587.07067 | AG57: 54 | AH57: 62512.67673 | AI57: 65587.07067 | AJ57: 59028.3636 | AK57: 65587.07067
H58: 2002 | R58: 55 | S58: 67440.85106 | AC58: 55 | AD58: 42950.08068 | AE58: 55 | AF58: 70409.96832 | AG58: 55 | AH58: 67109.50106 | AI58: 70409.96832 | AJ58: 63368.97149 | AK58: 70409.96832
H59: 2003 | R59: 56 | S59: 72945.2928 | AC59: 56 | AD59: 46422.96746 | AE59: 56 | AF59: 76103.22534 | AG59: 56 | AH59: 72535.88665 | AI59: 76103.22534 | AJ59: 68492.90281 | AK59: 76103.22534
H60: 2004 | R60: 57 | S60: 76482.18076 | AC60: 57 | AD60: 48654.47648 | AE60: 57 | AF60: 79761.43686 | AG60: 57 | AH60: 76022.61951 | AI60: 79761.43686 | AJ60: 71785.29317 | AK60: 79761.43686
H61: 2005 | R61: 58 | S61: 82089.63865 | AC61: 58 | AD61: 52192.35867 | AE61: 58 | AF61: 85561.24373 | AG61: 58 | AH61: 81550.56043 | AI61: 85561.24373 | AJ61: 77005.11936 | AK61: 85561.24373
H62: 2006 | R62: 59 | S62: 87834.06032 | AC62: 59 | AD62: 55816.65465 | AE62: 59 | AF62: 91502.71255 | AG62: 59 | AH62: 87213.5229 | AI62: 91502.71255 | AJ62: 82352.44129 | AK62: 91502.71255
H63: 2007 | R63: 60 | S63: 94150.50714 | AC63: 60 | AD63: 59801.85528 | AE63: 60 | AF63: 98035.82833 | AG63: 60 | AH63: 93440.39888 | AI63: 98035.82833 | AJ63: 88232.2455 | AK63: 98035.82833
H64: 2008 | R64: 61 | S64: 100587.8044 | AC64: 61 | AD64: 63863.30337 | AE64: 61 | AF64: 104693.94 | AG64: 61 | AH64: 99786.41152 | AI64: 104693.94 | AJ64: 94224.54596 | AK64: 104693.94
H65: 2009 | R65: 62 | S65: 107226.5189 | AC65: 62 | AD65: 68051.83056 | AE65: 62 | AF65: 111560.378 | AG65: 62 | AH65: 106330.9853 | AI65: 111560.378 | AJ65: 100404.3402 | AK65: 111560.378
H66: 2010 | R66: 63 | S66: 116830.0962 | AC66: 63 | AD66: 74110.96213 | AE66: 63 | AF66: 121493.3805 | AG66: 63 | AH66: 115798.3783 | AI66: 121493.3805 | AJ66: 109344.0425 | AK66: 121493.3805
H67: 2011 | R67: 64 | S67: 127859.7081 | AC67: 64 | AD67: 81069.81374 | AE67: 64 | AF67: 132901.334 | AG67: 64 | AH67: 126671.584 | AI67: 132901.334 | AJ67: 119611.2006 | AK67: 132901.334
H68: 2012 | R68: 65 | S68: 138163.3572 | AC68: 65 | AD68: =S68*$W$14+$AB$3 -> 87570.63771 | AE68: =AC68 -> 65 | AF68: =AD68/(1-SUM($Y$3:$Y$5)) -> 143558.4225 | AG68: =AE68 -> 65 | AH68: =AD68/(1-SUM($Z$3:$Z$5)) -> 136829.1214 | AI68: =AF68 -> 143558.4225 | AJ68: =AI68*90% -> 129202.5802 | AK68: =AI68 -> 143558.4225
H69: 2013 | R69: 66 | S69: 147274.4594 | AC69: 66 | AD69: 93319.05471 | AE69: 66 | AF69: 152982.0569 | AG69: 66 | AH69: 145811.023 | AI69: 152982.0569 | AJ69: 137683.8512 | AK69: 152982.0569
H70: 2014 | R70: 67 | S70: 156556.3948 | AC70: 67 | AD70: 99175.25452 | AE70: 67 | AF70: 162582.3845 | AG70: 67 | AH70: 154961.3352 | AI70: 162582.3845 | AJ70: 146324.146 | AK70: 162582.3845
H71: 2015 | R71: 68 | S71: 169084.1603 | AC71: 68 | AD71: 107079.3279 | AE71: 68 | AF71: 175539.8818 | AG71: 68 | AH71: 167311.4498 | AI71: 175539.8818 | AJ71: 157985.8936 | AK71: 175539.8818
H72: 2016 | R72: 69 | S72: 181864.1082 | AC72: 69 | AD72: 115142.5092 | AE72: 69 | AF72: 188758.2119 | AG72: 69 | AH72: 179910.1707 | AI72: 188758.2119 | AJ72: 169882.3907 | AK72: 188758.2119
H73: 2017 | R73: 70 | S73: 194701.0004 | AC73: 70 | AD73: 123241.6182 | AE73: 70 | AF73: 202035.4396 | AG73: 70 | AH73: 192565.0284 | AI73: 202035.4396 | AJ73: 181831.8957 | AK73: 202035.4396
H74: 2018 | R74: 71 | S74: 207668.0512 | AC74: 71 | AD74: 131422.8474 | AE74: 71 | AF74: 215447.2908 | AG74: 71 | AH74: 205348.199 | AI74: 215447.2908 | AJ74: 193902.5617 | AK74: 215447.2908
H75: 2019 | R75: 72 | S75: 220740.8559 | AC75: 72 | AD75: 139670.7992 | AE75: 72 | AF75: 228968.5234 | AG75: 72 | AH75: 218235.6238 | AI75: 228968.5234 | AJ75: 206071.671 | AK75: 228968.5234
H76: 2020 | R76: 73 | S76: 236189.0551 | AC76: 73 | AD76: 149417.4456 | AE76: 73 | AF76: 244946.6321 | AG76: 73 | AH76: 233464.7587 | AI76: 244946.6321 | AJ76: 220451.9689 | AK76: 244946.6321
H77: 2021 | R77: 74 | S77: 251767.413 | AC77: 74 | AD77: 159246.2121 | AE77: 74 | AF77: 261059.3641 | AG77: 74 | AH77: 248822.2064 | AI77: 261059.3641 | AJ77: 234953.4277 | AK77: 261059.3641
H78: 2022 | R78: 75 | S78: 267500.3341 | AC78: 75 | AD78: 169172.4965 | AE78: 75 | AF78: 277331.9614 | AG78: 75 | AH78: 264332.0257 | AI78: 277331.9614 | AJ78: 249598.7653 | AK78: 277331.9614
H79: 2023 | R79: 76 | S79: 283379.6837 | AC79: 76 | AD79: 179191.1661 | AE79: 76 | AF79: 293756.01 | AG79: 76 | AH79: 279986.197 | AI79: 293756.01 | AJ79: 264380.409 | AK79: 293756.01
H80: 2024 | R80: 77 | S80: 299372.922 | AC80: 77 | AD80: 189281.6909 | AE80: 77 | AF80: 310297.854 | AG80: 77 | AH80: 295752.6421 | AI80: 310297.854 | AJ80: 279268.0686 | AK80: 310297.854
H81: 2025 | R81: 78 | S81: 315813.5806 | AC81: 78 | AD81: 199654.5041 | AE81: 78 | AF81: 327302.4657 | AG81: 78 | AH81: 311960.1626 | AI81: 327302.4657 | AJ81: 294572.2191 | AK81: 327302.4657
H82: 2026 | R82: 79 | S82: 332441.3421 | AC82: 79 | AD82: 210145.3651 | AE82: 79 | AF82: 344500.5985 | AG82: 79 | AH82: 328352.133 | AI82: 344500.5985 | AJ82: 310050.5387 | AK82: 344500.5985
R83: 80 | S83: 349264.3416 | AC83: 80 | AD83: 220759.4065 | AE83: 80 | AF83: 361900.6664 | AG83: 80 | AH83: 344936.5726 | AI83: 361900.6664 | AJ83: 325710.5997 | AK83: 361900.6664
R84: 81 | S84: 366062.9363 | AC84: 81 | AD84: 231358.0503 | AE84: 81 | AF84: 379275.4923 | AG84: 81 | AH84: 361496.9536 | AI84: 379275.4923 | AJ84: 341347.9431 | AK84: 379275.4923
R85: 82 | S85: 383138.118 | AC85: 82 | AD85: 242131.1997 | AE85: 82 | AF85: 396936.3929 | AG85: 82 | AH85: 378329.9995 | AI85: 396936.3929 | AJ85: 357242.7536 | AK85: 396936.3929
R86: 83 | S86: 400359.7282 | AC86: 83 | AD86: 252996.7343 | AE86: 83 | AF86: 414748.7447 | AG86: 83 | AH86: 395307.3973 | AI86: 414748.7447 | AJ86: 373273.8703 | AK86: 414748.7447
R87: 84 | S87: 417573.2035 | AC87: 84 | AD87: 263857.1364 | AE87: 84 | AF87: 432552.6826 | AG87: 84 | AH87: 412276.7756 | AI87: 432552.6826 | AJ87: 389297.4144 | AK87: 432552.6826

Sheet MasterBase (hidden)
A1: Producto Seleccionado | M1: Tarifas base
A2: Contrucción del plan seleccionado | M2: Llave de busqueda | N2: PlanName | O2: Region | P2: LowAge | Q2: Rate | R2: RateType
A3: Suma asegurada | B3: Deducible | C3: Coaseguro | D3: Tipo de cliente | E3: Código de producto | M3: NPS5D17C0Mexico Region 118Male | N3: NPS5D17C0 | O3: Mexico Region 1 | P3: 18 | Q3: 19309 | R3: Male
A4: ='Datos Asegurado'!C27/1000000 -> 10 | B4: ='Datos Asegurado'!C29/1000 -> 35 | C4: ='Datos Asegurado'!C31*100 -> 10 | D4: =IF('Datos Asegurado'!C24="Transfer Bupa Internacional","T",IF('Datos Asegurado'!C24="Nuevo negocio - con periodos de espera","PE","")) ->  | E4: =CONCATENATE("NPS",A4,"D",B4,"C",C4,D4) -> NPS10D35C10 | M4: NPS5D17C0Mexico Region 119Male | N4: NPS5D17C0 | O4: Mexico Region 1 | P4: 19 | Q4: 20064 | R4: Male
M5: NPS5D17C0Mexico Region 120Male | N5: NPS5D17C0 | O5: Mexico Region 1 | P5: 20 | Q5: 21002 | R5: Male
A6: Región seleccionada | M6: NPS5D17C0Mexico Region 121Male | N6: NPS5D17C0 | O6: Mexico Region 1 | P6: 21 | Q6: 21827 | R6: Male
A7: =IF('Datos Asegurado'!E11="Zona 1","Mexico Region 1","Mexico Region 2") -> Mexico Region 1 | M7: NPS5D17C0Mexico Region 122Male | N7: NPS5D17C0 | O7: Mexico Region 1 | P7: 22 | Q7: 22618 | R7: Male
M8: NPS5D17C0Mexico Region 123Male | N8: NPS5D17C0 | O8: Mexico Region 1 | P8: 23 | Q8: 23505 | R8: Male
A9: Edad titular | B9: Sexo titular | C9: Valor prima | M9: NPS5D17C0Mexico Region 124Male | N9: NPS5D17C0 | O9: Mexico Region 1 | P9: 24 | Q9: 24354 | R9: Male
A10: ='Datos Asegurado'!C8 -> 18 | B10: =IF('Datos Asegurado'!C9="Masculino","Male","Female") -> Female | C10: =IFERROR(VLOOKUP(CONCATENATE($E$4,$A$7,A10,B10),$M$3:$R$259394,5,FALSE),0) -> 19859 | M10: NPS5D17C0Mexico Region 125Male | N10: NPS5D17C0 | O10: Mexico Region 1 | P10: 25 | Q10: 24995 | R10: Male
M11: NPS5D17C0Mexico Region 126Male | N11: NPS5D17C0 | O11: Mexico Region 1 | P11: 26 | Q11: 25902 | R11: Male
M12: NPS5D17C0Mexico Region 127Male | N12: NPS5D17C0 | O12: Mexico Region 1 | P12: 27 | Q12: 26791 | R12: Male
A13: Conyuges | E13: Hijos | I13: Dependientes | M13: NPS5D17C0Mexico Region 128Male | N13: NPS5D17C0 | O13: Mexico Region 1 | P13: 28 | Q13: 27711 | R13: Male
A14: Econyugues | B14: S Conyugues | C14: Valor prima | E14: E hijos | F14: S Hijos | G14: Valor prima | I14: E dependientes | J14: S dependientes | K14: Valor prima | M14: NPS5D17C0Mexico Region 129Male | N14: NPS5D17C0 | O14: Mexico Region 1 | P14: 29 | Q14: 28809 | R14: Male
A15: =IF('Datos Asegurado'!I6="Conyuge",'Datos Asegurado'!N6,"") ->  | B15: =IF('Datos Asegurado'!I6="Conyuge",IF('Datos Asegurado'!J6="Masculino","Male","Female"),"") ->  | C15: =IFERROR(VLOOKUP(CONCATENATE($E$4,$A$7,A15,B15),$M$3:$R$259394,5,FALSE),0) -> 0 | E15: =IF('Datos Asegurado'!I6="Hij@",'Datos Asegurado'!N6,"") ->  | F15: =IF('Datos Asegurado'!I6="Hij@",IF('Datos Asegurado'!J6="Masculino","Male","Female"),"") ->  | G15: =IFERROR(VLOOKUP(CONCATENATE($E$4,$A$7,E15,F15),$M$3:$R$259394,5,FALSE),0) -> 0 | I15: =IF('Datos Asegurado'!I6="Dependiente economico",'Datos Asegurado'!N6,"") ->  | J15: =IF('Datos Asegurado'!I6="Dependiente economico",IF('Datos Asegurado'!J6="Masculino","Male","Female"),"") ->  | K15: =IFERROR(VLOOKUP(CONCATENATE($E$4,$A$7,I15,J15),$M$3:$R$259394,5,FALSE),0) -> 0 | M15: NPS5D17C0Mexico Region 130Male | N15: NPS5D17C0 | O15: Mexico Region 1 | P15: 30 | Q15: 30689 | R15: Male
A16: =IF('Datos Asegurado'!I7="Conyuge",'Datos Asegurado'!N7,"") ->  | B16: =IF('Datos Asegurado'!I7="Conyuge",IF('Datos Asegurado'!J7="Masculino","Male","Female"),"") ->  | C16: 0 | E16: =IF('Datos Asegurado'!I7="Hij@",'Datos Asegurado'!N7,"") ->  | F16: =IF('Datos Asegurado'!I7="Hij@",IF('Datos Asegurado'!J7="Masculino","Male","Female"),"") ->  | G16: 0 | I16: =IF('Datos Asegurado'!I7="Dependiente economico",'Datos Asegurado'!N7,"") ->  | J16: =IF('Datos Asegurado'!I7="Dependiente economico",IF('Datos Asegurado'!J7="Masculino","Male","Female"),"") ->  | K16: 0 | M16: NPS5D17C0Mexico Region 131Male | N16: NPS5D17C0 | O16: Mexico Region 1 | P16: 31 | Q16: 32293 | R16: Male
A17: =IF('Datos Asegurado'!I8="Conyuge",'Datos Asegurado'!N8,"") ->  | B17: =IF('Datos Asegurado'!I8="Conyuge",IF('Datos Asegurado'!J8="Masculino","Male","Female"),"") ->  | C17: 0 | E17: =IF('Datos Asegurado'!I8="Hij@",'Datos Asegurado'!N8,"") ->  | F17: =IF('Datos Asegurado'!I8="Hij@",IF('Datos Asegurado'!J8="Masculino","Male","Female"),"") ->  | G17: 0 | I17: =IF('Datos Asegurado'!I8="Dependiente economico",'Datos Asegurado'!N8,"") ->  | J17: =IF('Datos Asegurado'!I8="Dependiente economico",IF('Datos Asegurado'!J8="Masculino","Male","Female"),"") ->  | K17: 0 | M17: NPS5D17C0Mexico Region 132Male | N17: NPS5D17C0 | O17: Mexico Region 1 | P17: 32 | Q17: 33530 | R17: Male
A18: =IF('Datos Asegurado'!I9="Conyuge",'Datos Asegurado'!N9,"") ->  | B18: =IF('Datos Asegurado'!I9="Conyuge",IF('Datos Asegurado'!J9="Masculino","Male","Female"),"") ->  | C18: 0 | E18: =IF('Datos Asegurado'!I9="Hij@",'Datos Asegurado'!N9,"") ->  | F18: =IF('Datos Asegurado'!I9="Hij@",IF('Datos Asegurado'!J9="Masculino","Male","Female"),"") ->  | G18: 0 | I18: =IF('Datos Asegurado'!I9="Dependiente economico",'Datos Asegurado'!N9,"") ->  | J18: =IF('Datos Asegurado'!I9="Dependiente economico",IF('Datos Asegurado'!J9="Masculino","Male","Female"),"") ->  | K18: 0 | M18: NPS5D17C0Mexico Region 133Male | N18: NPS5D17C0 | O18: Mexico Region 1 | P18: 33 | Q18: 34452 | R18: Male
A19: =IF('Datos Asegurado'!I10="Conyuge",'Datos Asegurado'!N10,"") ->  | B19: =IF('Datos Asegurado'!I10="Conyuge",IF('Datos Asegurado'!J10="Masculino","Male","Female"),"") ->  | C19: 0 | E19: =IF('Datos Asegurado'!I10="Hij@",'Datos Asegurado'!N10,"") ->  | F19: =IF('Datos Asegurado'!I10="Hij@",IF('Datos Asegurado'!J10="Masculino","Male","Female"),"") ->  | G19: 0 | I19: =IF('Datos Asegurado'!I10="Dependiente economico",'Datos Asegurado'!N10,"") ->  | J19: =IF('Datos Asegurado'!I10="Dependiente economico",IF('Datos Asegurado'!J10="Masculino","Male","Female"),"") ->  | K19: 0 | M19: NPS5D17C0Mexico Region 134Male | N19: NPS5D17C0 | O19: Mexico Region 1 | P19: 34 | Q19: 35430 | R19: Male
A20: =IF('Datos Asegurado'!I11="Conyuge",'Datos Asegurado'!N11,"") ->  | B20: =IF('Datos Asegurado'!I11="Conyuge",IF('Datos Asegurado'!J11="Masculino","Male","Female"),"") ->  | C20: 0 | E20: =IF('Datos Asegurado'!I11="Hij@",'Datos Asegurado'!N11,"") ->  | F20: =IF('Datos Asegurado'!I11="Hij@",IF('Datos Asegurado'!J11="Masculino","Male","Female"),"") ->  | G20: 0 | I20: =IF('Datos Asegurado'!I11="Dependiente economico",'Datos Asegurado'!N11,"") ->  | J20: =IF('Datos Asegurado'!I11="Dependiente economico",IF('Datos Asegurado'!J11="Masculino","Male","Female"),"") ->  | K20: 0 | M20: NPS5D17C0Mexico Region 135Male | N20: NPS5D17C0 | O20: Mexico Region 1 | P20: 35 | Q20: 36354 | R20: Male
A21: =IF('Datos Asegurado'!I12="Conyuge",'Datos Asegurado'!N12,"") ->  | B21: =IF('Datos Asegurado'!I12="Conyuge",IF('Datos Asegurado'!J12="Masculino","Male","Female"),"") ->  | C21: 0 | E21: =IF('Datos Asegurado'!I12="Hij@",'Datos Asegurado'!N12,"") ->  | F21: =IF('Datos Asegurado'!I12="Hij@",IF('Datos Asegurado'!J12="Masculino","Male","Female"),"") ->  | G21: 0 | I21: =IF('Datos Asegurado'!I12="Dependiente economico",'Datos Asegurado'!N12,"") ->  | J21: =IF('Datos Asegurado'!I12="Dependiente economico",IF('Datos Asegurado'!J12="Masculino","Male","Female"),"") ->  | K21: 0 | M21: NPS5D17C0Mexico Region 136Male | N21: NPS5D17C0 | O21: Mexico Region 1 | P21: 36 | Q21: 37314 | R21: Male
A22: =IF('Datos Asegurado'!I13="Conyuge",'Datos Asegurado'!N13,"") ->  | B22: =IF('Datos Asegurado'!I13="Conyuge",IF('Datos Asegurado'!J13="Masculino","Male","Female"),"") ->  | C22: 0 | E22: =IF('Datos Asegurado'!I13="Hij@",'Datos Asegurado'!N13,"") ->  | F22: =IF('Datos Asegurado'!I13="Hij@",IF('Datos Asegurado'!J13="Masculino","Male","Female"),"") ->  | G22: 0 | I22: =IF('Datos Asegurado'!I13="Dependiente economico",'Datos Asegurado'!N13,"") ->  | J22: =IF('Datos Asegurado'!I13="Dependiente economico",IF('Datos Asegurado'!J13="Masculino","Male","Female"),"") ->  | K22: 0 | M22: NPS5D17C0Mexico Region 137Male | N22: NPS5D17C0 | O22: Mexico Region 1 | P22: 37 | Q22: 38280 | R22: Male
A23: =IF('Datos Asegurado'!I14="Conyuge",'Datos Asegurado'!N14,"") ->  | B23: =IF('Datos Asegurado'!I14="Conyuge",IF('Datos Asegurado'!J14="Masculino","Male","Female"),"") ->  | C23: 0 | E23: =IF('Datos Asegurado'!I14="Hij@",'Datos Asegurado'!N14,"") ->  | F23: =IF('Datos Asegurado'!I14="Hij@",IF('Datos Asegurado'!J14="Masculino","Male","Female"),"") ->  | G23: 0 | I23: =IF('Datos Asegurado'!I14="Dependiente economico",'Datos Asegurado'!N14,"") ->  | J23: =IF('Datos Asegurado'!I14="Dependiente economico",IF('Datos Asegurado'!J14="Masculino","Male","Female"),"") ->  | K23: 0 | M23: NPS5D17C0Mexico Region 138Male | N23: NPS5D17C0 | O23: Mexico Region 1 | P23: 38 | Q23: 39214 | R23: Male
B24: Total tarifa base | C24: =SUM(C15:C23) -> 0 | F24: Total tarifa base | G24: =SUM(G15:G23) -> 0 | J24: Total tarifa base | K24: =SUM(K15:K23) -> 0 | M24: NPS5D17C0Mexico Region 139Male | N24: NPS5D17C0 | O24: Mexico Region 1 | P24: 39 | Q24: 40430 | R24: Male
M25: NPS5D17C0Mexico Region 140Male | N25: NPS5D17C0 | O25: Mexico Region 1 | P25: 40 | Q25: 41557 | R25: Male
M26: NPS5D17C0Mexico Region 141Male | N26: NPS5D17C0 | O26: Mexico Region 1 | P26: 41 | Q26: 42675 | R26: Male
M27: NPS5D17C0Mexico Region 142Male | N27: NPS5D17C0 | O27: Mexico Region 1 | P27: 42 | Q27: 43811 | R27: Male
M28: NPS5D17C0Mexico Region 143Male | N28: NPS5D17C0 | O28: Mexico Region 1 | P28: 43 | Q28: 45089 | R28: Male
M29: NPS5D17C0Mexico Region 144Male | N29: NPS5D17C0 | O29: Mexico Region 1 | P29: 44 | Q29: 46407 | R29: Male
M30: NPS5D17C0Mexico Region 145Male | N30: NPS5D17C0 | O30: Mexico Region 1 | P30: 45 | Q30: 48148 | R30: Male
M31: NPS5D17C0Mexico Region 146Male | N31: NPS5D17C0 | O31: Mexico Region 1 | P31: 46 | Q31: 49525 | R31: Male
M32: NPS5D17C0Mexico Region 147Male | N32: NPS5D17C0 | O32: Mexico Region 1 | P32: 47 | Q32: 51066 | R32: Male
M33: NPS5D17C0Mexico Region 148Male | N33: NPS5D17C0 | O33: Mexico Region 1 | P33: 48 | Q33: 54830 | R33: Male
M34: NPS5D17C0Mexico Region 149Male | N34: NPS5D17C0 | O34: Mexico Region 1 | P34: 49 | Q34: 56613 | R34: Male
M35: NPS5D17C0Mexico Region 150Male | N35: NPS5D17C0 | O35: Mexico Region 1 | P35: 50 | Q35: 58407 | R35: Male
M36: NPS5D17C0Mexico Region 151Male | N36: NPS5D17C0 | O36: Mexico Region 1 | P36: 51 | Q36: 62575 | R36: Male
M37: NPS5D17C0Mexico Region 152Male | N37: NPS5D17C0 | O37: Mexico Region 1 | P37: 52 | Q37: 66286 | R37: Male
M38: NPS5D17C0Mexico Region 153Male | N38: NPS5D17C0 | O38: Mexico Region 1 | P38: 53 | Q38: 70220 | R38: Male
M39: NPS5D17C0Mexico Region 154Male | N39: NPS5D17C0 | O39: Mexico Region 1 | P39: 54 | Q39: 74391 | R39: Male
M40: NPS5D17C0Mexico Region 155Male | N40: NPS5D17C0 | O40: Mexico Region 1 | P40: 55 | Q40: 78811 | R40: Male
M41: NPS5D17C0Mexico Region 156Male | N41: NPS5D17C0 | O41: Mexico Region 1 | P41: 56 | Q41: 83496 | R41: Male
M42: NPS5D17C0Mexico Region 157Male | N42: NPS5D17C0 | O42: Mexico Region 1 | P42: 57 | Q42: 88464 | R42: Male
M43: NPS5D17C0Mexico Region 158Male | N43: NPS5D17C0 | O43: Mexico Region 1 | P43: 58 | Q43: 93729 | R43: Male
M44: NPS5D17C0Mexico Region 159Male | N44: NPS5D17C0 | O44: Mexico Region 1 | P44: 59 | Q44: 99309 | R44: Male
M45: NPS5D17C0Mexico Region 160Male | N45: NPS5D17C0 | O45: Mexico Region 1 | P45: 60 | Q45: 105225 | R45: Male
M46: NPS5D17C0Mexico Region 161Male | N46: NPS5D17C0 | O46: Mexico Region 1 | P46: 61 | Q46: 114109 | R46: Male
M47: NPS5D17C0Mexico Region 162Male | N47: NPS5D17C0 | O47: Mexico Region 1 | P47: 62 | Q47: 123746 | R47: Male
M48: NPS5D17C0Mexico Region 163Male | N48: NPS5D17C0 | O48: Mexico Region 1 | P48: 63 | Q48: 134205 | R48: Male
M49: NPS5D17C0Mexico Region 164Male | N49: NPS5D17C0 | O49: Mexico Region 1 | P49: 64 | Q49: 145552 | R49: Male
M50: NPS5D17C0Mexico Region 165Male | N50: NPS5D17C0 | O50: Mexico Region 1 | P50: 65 | Q50: 157863 | R50: Male
M51: NPS5D17C0Mexico Region 166Male | N51: NPS5D17C0 | O51: Mexico Region 1 | P51: 66 | Q51: 171221 | R51: Male
M52: NPS5D17C0Mexico Region 167Male | N52: NPS5D17C0 | O52: Mexico Region 1 | P52: 67 | Q52: 185714 | R52: Male
M53: NPS5D17C0Mexico Region 168Male | N53: NPS5D17C0 | O53: Mexico Region 1 | P53: 68 | Q53: 201439 | R53: Male
M54: NPS5D17C0Mexico Region 169Male | N54: NPS5D17C0 | O54: Mexico Region 1 | P54: 69 | Q54: 218500 | R54: Male
M55: NPS5D17C0Mexico Region 170Male | N55: NPS5D17C0 | O55: Mexico Region 1 | P55: 70 | Q55: 237013 | R55: Male
M56: NPS5D17C0Mexico Region 171Male | N56: NPS5D17C0 | O56: Mexico Region 1 | P56: 71 | Q56: 257096 | R56: Male
M57: NPS5D17C0Mexico Region 172Male | N57: NPS5D17C0 | O57: Mexico Region 1 | P57: 72 | Q57: 278889 | R57: Male
M58: NPS5D17C0Mexico Region 173Male | N58: NPS5D17C0 | O58: Mexico Region 1 | P58: 73 | Q58: 302534 | R58: Male
M59: NPS5D17C0Mexico Region 174Male | N59: NPS5D17C0 | O59: Mexico Region 1 | P59: 74 | Q59: 326680 | R59: Male
M60: NPS5D17C0Mexico Region 175Male | N60: NPS5D17C0 | O60: Mexico Region 1 | P60: 75 | Q60: 352757 | R60: Male
M61: NPS5D17C0Mexico Region 176Male | N61: NPS5D17C0 | O61: Mexico Region 1 | P61: 76 | Q61: 380921 | R61: Male
M62: NPS5D17C0Mexico Region 177Male | N62: NPS5D17C0 | O62: Mexico Region 1 | P62: 77 | Q62: 411338 | R62: Male
M63: NPS5D17C0Mexico Region 178Male | N63: NPS5D17C0 | O63: Mexico Region 1 | P63: 78 | Q63: 444188 | R63: Male
M64: NPS5D17C0Mexico Region 179Male | N64: NPS5D17C0 | O64: Mexico Region 1 | P64: 79 | Q64: 461927 | R64: Male
M65: NPS5D17C0Mexico Region 180Male | N65: NPS5D17C0 | O65: Mexico Region 1 | P65: 80 | Q65: 480375 | R65: Male
M66: NPS5D17C0Mexico Region 181Male | N66: NPS5D17C0 | O66: Mexico Region 1 | P66: 81 | Q66: 499561 | R66: Male
M67: NPS5D17C0Mexico Region 182Male | N67: NPS5D17C0 | O67: Mexico Region 1 | P67: 82 | Q67: 519516 | R67: Male
M68: NPS5D17C0Mexico Region 183Male | N68: NPS5D17C0 | O68: Mexico Region 1 | P68: 83 | Q68: 540268 | R68: Male
M69: NPS5D17C0Mexico Region 184Male | N69: NPS5D17C0 | O69: Mexico Region 1 | P69: 84 | Q69: 561850 | R69: Male
M70: NPS5D17C10Mexico Region 118Male | N70: NPS5D17C10 | O70: Mexico Region 1 | P70: 18 | Q70: 18241 | R70: Male
M71: NPS5D17C10Mexico Region 119Male | N71: NPS5D17C10 | O71: Mexico Region 1 | P71: 19 | Q71: 18954 | R71: Male
M72: NPS5D17C10Mexico Region 120Male | N72: NPS5D17C10 | O72: Mexico Region 1 | P72: 20 | Q72: 19838 | R72: Male
M73: NPS5D17C10Mexico Region 121Male | N73: NPS5D17C10 | O73: Mexico Region 1 | P73: 21 | Q73: 20616 | R73: Male
M74: NPS5D17C10Mexico Region 122Male | N74: NPS5D17C10 | O74: Mexico Region 1 | P74: 22 | Q74: 21361 | R74: Male
M75: NPS5D17C10Mexico Region 123Male | N75: NPS5D17C10 | O75: Mexico Region 1 | P75: 23 | Q75: 22198 | R75: Male
M76: NPS5D17C10Mexico Region 124Male | N76: NPS5D17C10 | O76: Mexico Region 1 | P76: 24 | Q76: 22996 | R76: Male
M77: NPS5D17C10Mexico Region 125Male | N77: NPS5D17C10 | O77: Mexico Region 1 | P77: 25 | Q77: 23602 | R77: Male
M78: NPS5D17C10Mexico Region 126Male | N78: NPS5D17C10 | O78: Mexico Region 1 | P78: 26 | Q78: 24455 | R78: Male
M79: NPS5D17C10Mexico Region 127Male | N79: NPS5D17C10 | O79: Mexico Region 1 | P79: 27 | Q79: 25293 | R79: Male
M80: NPS5D17C10Mexico Region 128Male | N80: NPS5D17C10 | O80: Mexico Region 1 | P80: 28 | Q80: 26161 | R80: Male
M81: NPS5D17C10Mexico Region 129Male | N81: NPS5D17C10 | O81: Mexico Region 1 | P81: 29 | Q81: 27196 | R81: Male
M82: NPS5D17C10Mexico Region 130Male | N82: NPS5D17C10 | O82: Mexico Region 1 | P82: 30 | Q82: 28968 | R82: Male
M83: NPS5D17C10Mexico Region 131Male | N83: NPS5D17C10 | O83: Mexico Region 1 | P83: 31 | Q83: 30480 | R83: Male
M84: NPS5D17C10Mexico Region 132Male | N84: NPS5D17C10 | O84: Mexico Region 1 | P84: 32 | Q84: 31646 | R84: Male
M85: NPS5D17C10Mexico Region 133Male | N85: NPS5D17C10 | O85: Mexico Region 1 | P85: 33 | Q85: 32516 | R85: Male
M86: NPS5D17C10Mexico Region 134Male | N86: NPS5D17C10 | O86: Mexico Region 1 | P86: 34 | Q86: 33438 | R86: Male
M87: NPS5D17C10Mexico Region 135Male | N87: NPS5D17C10 | O87: Mexico Region 1 | P87: 35 | Q87: 34309 | R87: Male
M88: NPS5D17C10Mexico Region 136Male | N88: NPS5D17C10 | O88: Mexico Region 1 | P88: 36 | Q88: 35214 | R88: Male
M89: NPS5D17C10Mexico Region 137Male | N89: NPS5D17C10 | O89: Mexico Region 1 | P89: 37 | Q89: 36123 | R89: Male
M90: NPS5D17C10Mexico Region 138Male | N90: NPS5D17C10 | O90: Mexico Region 1 | P90: 38 | Q90: 37004 | R90: Male
M91: NPS5D17C10Mexico Region 139Male | N91: NPS5D17C10 | O91: Mexico Region 1 | P91: 39 | Q91: 38152 | R91: Male
M92: NPS5D17C10Mexico Region 140Male | N92: NPS5D17C10 | O92: Mexico Region 1 | P92: 40 | Q92: 39214 | R92: Male
M93: NPS5D17C10Mexico Region 141Male | N93: NPS5D17C10 | O93: Mexico Region 1 | P93: 41 | Q93: 40266 | R93: Male
M94: NPS5D17C10Mexico Region 142Male | N94: NPS5D17C10 | O94: Mexico Region 1 | P94: 42 | Q94: 41338 | R94: Male
M95: NPS5D17C10Mexico Region 143Male | N95: NPS5D17C10 | O95: Mexico Region 1 | P95: 43 | Q95: 42541 | R95: Male
M96: NPS5D17C10Mexico Region 144Male | N96: NPS5D17C10 | O96: Mexico Region 1 | P96: 44 | Q96: 43784 | R96: Male
M97: NPS5D17C10Mexico Region 145Male | N97: NPS5D17C10 | O97: Mexico Region 1 | P97: 45 | Q97: 45425 | R97: Male
M98: NPS5D17C10Mexico Region 146Male | N98: NPS5D17C10 | O98: Mexico Region 1 | P98: 46 | Q98: 46723 | R98: Male
M99: NPS5D17C10Mexico Region 147Male | N99: NPS5D17C10 | O99: Mexico Region 1 | P99: 47 | Q99: 48177 | R99: Male
M100: NPS5D17C10Mexico Region 148Male | N100: NPS5D17C10 | O100: Mexico Region 1 | P100: 48 | Q100: 51725 | R100: Male
M101: NPS5D17C10Mexico Region 149Male | N101: NPS5D17C10 | O101: Mexico Region 1 | P101: 49 | Q101: 53404 | R101: Male
M102: NPS5D17C10Mexico Region 150Male | N102: NPS5D17C10 | O102: Mexico Region 1 | P102: 50 | Q102: 55096 | R102: Male
M103: NPS5D17C10Mexico Region 151Male | N103: NPS5D17C10 | O103: Mexico Region 1 | P103: 51 | Q103: 59023 | R103: Male
M104: NPS5D17C10Mexico Region 152Male | N104: NPS5D17C10 | O104: Mexico Region 1 | P104: 52 | Q104: 62521 | R104: Male
M105: NPS5D17C10Mexico Region 153Male | N105: NPS5D17C10 | O105: Mexico Region 1 | P105: 53 | Q105: 66230 | R105: Male
M106: NPS5D17C10Mexico Region 154Male | N106: NPS5D17C10 | O106: Mexico Region 1 | P106: 54 | Q106: 70161 | R106: Male
M107: NPS5D17C10Mexico Region 155Male | N107: NPS5D17C10 | O107: Mexico Region 1 | P107: 55 | Q107: 74329 | R107: Male
M108: NPS5D17C10Mexico Region 156Male | N108: NPS5D17C10 | O108: Mexico Region 1 | P108: 56 | Q108: 78745 | R108: Male
M109: NPS5D17C10Mexico Region 157Male | N109: NPS5D17C10 | O109: Mexico Region 1 | P109: 57 | Q109: 83427 | R109: Male
M110: NPS5D17C10Mexico Region 158Male | N110: NPS5D17C10 | O110: Mexico Region 1 | P110: 58 | Q110: 88389 | R110: Male
M111: NPS5D17C10Mexico Region 159Male | N111: NPS5D17C10 | O111: Mexico Region 1 | P111: 59 | Q111: 93650 | R111: Male
M112: NPS5D17C10Mexico Region 160Male | N112: NPS5D17C10 | O112: Mexico Region 1 | P112: 60 | Q112: 99227 | R112: Male
M113: NPS5D17C10Mexico Region 161Male | N113: NPS5D17C10 | O113: Mexico Region 1 | P113: 61 | Q113: 107600 | R113: Male
M114: NPS5D17C10Mexico Region 162Male | N114: NPS5D17C10 | O114: Mexico Region 1 | P114: 62 | Q114: 116686 | R114: Male
M115: NPS5D17C10Mexico Region 163Male | N115: NPS5D17C10 | O115: Mexico Region 1 | P115: 63 | Q115: 126543 | R115: Male
M116: NPS5D17C10Mexico Region 164Male | N116: NPS5D17C10 | O116: Mexico Region 1 | P116: 64 | Q116: 137238 | R116: Male
M117: NPS5D17C10Mexico Region 165Male | N117: NPS5D17C10 | O117: Mexico Region 1 | P117: 65 | Q117: 148843 | R117: Male
M118: NPS5D17C10Mexico Region 166Male | N118: NPS5D17C10 | O118: Mexico Region 1 | P118: 66 | Q118: 161434 | R118: Male
M119: NPS5D17C10Mexico Region 167Male | N119: NPS5D17C10 | O119: Mexico Region 1 | P119: 67 | Q119: 175095 | R119: Male
M120: NPS5D17C10Mexico Region 168Male | N120: NPS5D17C10 | O120: Mexico Region 1 | P120: 68 | Q120: 189918 | R120: Male
M121: NPS5D17C10Mexico Region 169Male | N121: NPS5D17C10 | O121: Mexico Region 1 | P121: 69 | Q121: 206000 | R121: Male
M122: NPS5D17C10Mexico Region 170Male | N122: NPS5D17C10 | O122: Mexico Region 1 | P122: 70 | Q122: 223448 | R122: Male
M123: NPS5D17C10Mexico Region 171Male | N123: NPS5D17C10 | O123: Mexico Region 1 | P123: 71 | Q123: 242380 | R123: Male
M124: NPS5D17C10Mexico Region 172Male | N124: NPS5D17C10 | O124: Mexico Region 1 | P124: 72 | Q124: 262923 | R124: Male
M125: NPS5D17C10Mexico Region 173Male | N125: NPS5D17C10 | O125: Mexico Region 1 | P125: 73 | Q125: 285211 | R125: Male
M126: NPS5D17C10Mexico Region 174Male | N126: NPS5D17C10 | O126: Mexico Region 1 | P126: 74 | Q126: 307970 | R126: Male
M127: NPS5D17C10Mexico Region 175Male | N127: NPS5D17C10 | O127: Mexico Region 1 | P127: 75 | Q127: 332550 | R127: Male
M128: NPS5D17C10Mexico Region 176Male | N128: NPS5D17C10 | O128: Mexico Region 1 | P128: 76 | Q128: 359096 | R128: Male
M129: NPS5D17C10Mexico Region 177Male | N129: NPS5D17C10 | O129: Mexico Region 1 | P129: 77 | Q129: 387768 | R129: Male
M130: NPS5D17C10Mexico Region 178Male | N130: NPS5D17C10 | O130: Mexico Region 1 | P130: 78 | Q130: 418732 | R130: Male
M131: NPS5D17C10Mexico Region 179Male | N131: NPS5D17C10 | O131: Mexico Region 1 | P131: 79 | Q131: 435454 | R131: Male
M132: NPS5D17C10Mexico Region 180Male | N132: NPS5D17C10 | O132: Mexico Region 1 | P132: 80 | Q132: 452843 | R132: Male
M133: NPS5D17C10Mexico Region 181Male | N133: NPS5D17C10 | O133: Mexico Region 1 | P133: 81 | Q133: 470927 | R133: Male
M134: NPS5D17C10Mexico Region 182Male | N134: NPS5D17C10 | O134: Mexico Region 1 | P134: 82 | Q134: 489736 | R134: Male
M135: NPS5D17C10Mexico Region 183Male | N135: NPS5D17C10 | O135: Mexico Region 1 | P135: 83 | Q135: 509296 | R135: Male
M136: NPS5D17C10Mexico Region 184Male | N136: NPS5D17C10 | O136: Mexico Region 1 | P136: 84 | Q136: 529641 | R136: Male
M137: NPS5D17C20Mexico Region 118Male | N137: NPS5D17C20 | O137: Mexico Region 1 | P137: 18 | Q137: 17652 | R137: Male
M138: NPS5D17C20Mexico Region 119Male | N138: NPS5D17C20 | O138: Mexico Region 1 | P138: 19 | Q138: 18341 | R138: Male
M139: NPS5D17C20Mexico Region 120Male | N139: NPS5D17C20 | O139: Mexico Region 1 | P139: 20 | Q139: 19195 | R139: Male
M140: NPS5D17C20Mexico Region 121Male | N140: NPS5D17C20 | O140: Mexico Region 1 | P140: 21 | Q140: 19946 | R140: Male
M141: NPS5D17C20Mexico Region 122Male | N141: NPS5D17C20 | O141: Mexico Region 1 | P141: 22 | Q141: 20668 | R141: Male
M142: NPS5D17C20Mexico Region 123Male | N142: NPS5D17C20 | O142: Mexico Region 1 | P142: 23 | Q142: 21475 | R142: Male
M143: NPS5D17C20Mexico Region 124Male | N143: NPS5D17C20 | O143: Mexico Region 1 | P143: 24 | Q143: 22246 | R143: Male
M144: NPS5D17C20Mexico Region 125Male | N144: NPS5D17C20 | O144: Mexico Region 1 | P144: 25 | Q144: 22832 | R144: Male
M145: NPS5D17C20Mexico Region 126Male | N145: NPS5D17C20 | O145: Mexico Region 1 | P145: 26 | Q145: 23657 | R145: Male
M146: NPS5D17C20Mexico Region 127Male | N146: NPS5D17C20 | O146: Mexico Region 1 | P146: 27 | Q146: 24468 | R146: Male
M147: NPS5D17C20Mexico Region 128Male | N147: NPS5D17C20 | O147: Mexico Region 1 | P147: 28 | Q147: 25305 | R147: Male
M148: NPS5D17C20Mexico Region 129Male | N148: NPS5D17C20 | O148: Mexico Region 1 | P148: 29 | Q148: 26305 | R148: Male
M149: NPS5D17C20Mexico Region 130Male | N149: NPS5D17C20 | O149: Mexico Region 1 | P149: 30 | Q149: 28018 | R149: Male
M150: NPS5D17C20Mexico Region 131Male | N150: NPS5D17C20 | O150: Mexico Region 1 | P150: 31 | Q150: 29480 | R150: Male
M151: NPS5D17C20Mexico Region 132Male | N151: NPS5D17C20 | O151: Mexico Region 1 | P151: 32 | Q151: 30607 | R151: Male
M152: NPS5D17C20Mexico Region 133Male | N152: NPS5D17C20 | O152: Mexico Region 1 | P152: 33 | Q152: 31446 | R152: Male
M153: NPS5D17C20Mexico Region 134Male | N153: NPS5D17C20 | O153: Mexico Region 1 | P153: 34 | Q153: 32338 | R153: Male
M154: NPS5D17C20Mexico Region 135Male | N154: NPS5D17C20 | O154: Mexico Region 1 | P154: 35 | Q154: 33179 | R154: Male
M155: NPS5D17C20Mexico Region 136Male | N155: NPS5D17C20 | O155: Mexico Region 1 | P155: 36 | Q155: 34054 | R155: Male
M156: NPS5D17C20Mexico Region 137Male | N156: NPS5D17C20 | O156: Mexico Region 1 | P156: 37 | Q156: 34932 | R156: Male
M157: NPS5D17C20Mexico Region 138Male | N157: NPS5D17C20 | O157: Mexico Region 1 | P157: 38 | Q157: 35784 | R157: Male
M158: NPS5D17C20Mexico Region 139Male | N158: NPS5D17C20 | O158: Mexico Region 1 | P158: 39 | Q158: 36893 | R158: Male
M159: NPS5D17C20Mexico Region 140Male | N159: NPS5D17C20 | O159: Mexico Region 1 | P159: 40 | Q159: 37918 | R159: Male
M160: NPS5D17C20Mexico Region 141Male | N160: NPS5D17C20 | O160: Mexico Region 1 | P160: 41 | Q160: 38938 | R160: Male
M161: NPS5D17C20Mexico Region 142Male | N161: NPS5D17C20 | O161: Mexico Region 1 | P161: 42 | Q161: 39971 | R161: Male
M162: NPS5D17C20Mexico Region 143Male | N162: NPS5D17C20 | O162: Mexico Region 1 | P162: 43 | Q162: 41136 | R162: Male
M163: NPS5D17C20Mexico Region 144Male | N163: NPS5D17C20 | O163: Mexico Region 1 | P163: 44 | Q163: 42336 | R163: Male
M164: NPS5D17C20Mexico Region 145Male | N164: NPS5D17C20 | O164: Mexico Region 1 | P164: 45 | Q164: 43921 | R164: Male
M165: NPS5D17C20Mexico Region 146Male | N165: NPS5D17C20 | O165: Mexico Region 1 | P165: 46 | Q165: 45175 | R165: Male
M166: NPS5D17C20Mexico Region 147Male | N166: NPS5D17C20 | O166: Mexico Region 1 | P166: 47 | Q166: 46580 | R166: Male
M167: NPS5D17C20Mexico Region 148Male | N167: NPS5D17C20 | O167: Mexico Region 1 | P167: 48 | Q167: 50009 | R167: Male
M168: NPS5D17C20Mexico Region 149Male | N168: NPS5D17C20 | O168: Mexico Region 1 | P168: 49 | Q168: 51632 | R168: Male
M169: NPS5D17C20Mexico Region 150Male | N169: NPS5D17C20 | O169: Mexico Region 1 | P169: 50 | Q169: 53266 | R169: Male
M170: NPS5D17C20Mexico Region 151Male | N170: NPS5D17C20 | O170: Mexico Region 1 | P170: 51 | Q170: 57063 | R170: Male
M171: NPS5D17C20Mexico Region 152Male | N171: NPS5D17C20 | O171: Mexico Region 1 | P171: 52 | Q171: 60443 | R171: Male
M172: NPS5D17C20Mexico Region 153Male | N172: NPS5D17C20 | O172: Mexico Region 1 | P172: 53 | Q172: 64027 | R172: Male
M173: NPS5D17C20Mexico Region 154Male | N173: NPS5D17C20 | O173: Mexico Region 1 | P173: 54 | Q173: 67825 | R173: Male
M174: NPS5D17C20Mexico Region 155Male | N174: NPS5D17C20 | O174: Mexico Region 1 | P174: 55 | Q174: 71852 | R174: Male
M175: NPS5D17C20Mexico Region 156Male | N175: NPS5D17C20 | O175: Mexico Region 1 | P175: 56 | Q175: 76121 | R175: Male
M176: NPS5D17C20Mexico Region 157Male | N176: NPS5D17C20 | O176: Mexico Region 1 | P176: 57 | Q176: 80645 | R176: Male
M177: NPS5D17C20Mexico Region 158Male | N177: NPS5D17C20 | O177: Mexico Region 1 | P177: 58 | Q177: 85441 | R177: Male
M178: NPS5D17C20Mexico Region 159Male | N178: NPS5D17C20 | O178: Mexico Region 1 | P178: 59 | Q178: 90525 | R178: Male
M179: NPS5D17C20Mexico Region 160Male | N179: NPS5D17C20 | O179: Mexico Region 1 | P179: 60 | Q179: 95913 | R179: Male
M180: NPS5D17C20Mexico Region 161Male | N180: NPS5D17C20 | O180: Mexico Region 1 | P180: 61 | Q180: 104005 | R180: Male
M181: NPS5D17C20Mexico Region 162Male | N181: NPS5D17C20 | O181: Mexico Region 1 | P181: 62 | Q181: 112786 | R181: Male
M182: NPS5D17C20Mexico Region 163Male | N182: NPS5D17C20 | O182: Mexico Region 1 | P182: 63 | Q182: 122311 | R182: Male
M183: NPS5D17C20Mexico Region 164Male | N183: NPS5D17C20 | O183: Mexico Region 1 | P183: 64 | Q183: 132646 | R183: Male
M184: NPS5D17C20Mexico Region 165Male | N184: NPS5D17C20 | O184: Mexico Region 1 | P184: 65 | Q184: 143861 | R184: Male
M185: NPS5D17C20Mexico Region 166Male | N185: NPS5D17C20 | O185: Mexico Region 1 | P185: 66 | Q185: 156029 | R185: Male
M186: NPS5D17C20Mexico Region 167Male | N186: NPS5D17C20 | O186: Mexico Region 1 | P186: 67 | Q186: 169230 | R186: Male
M187: NPS5D17C20Mexico Region 168Male | N187: NPS5D17C20 | O187: Mexico Region 1 | P187: 68 | Q187: 183554 | R187: Male
M188: NPS5D17C20Mexico Region 169Male | N188: NPS5D17C20 | O188: Mexico Region 1 | P188: 69 | Q188: 199095 | R188: Male
M189: NPS5D17C20Mexico Region 170Male | N189: NPS5D17C20 | O189: Mexico Region 1 | P189: 70 | Q189: 215957 | R189: Male
M190: NPS5D17C20Mexico Region 171Male | N190: NPS5D17C20 | O190: Mexico Region 1 | P190: 71 | Q190: 234254 | R190: Male
M191: NPS5D17C20Mexico Region 172Male | N191: NPS5D17C20 | O191: Mexico Region 1 | P191: 72 | Q191: 254104 | R191: Male
M192: NPS5D17C20Mexico Region 173Male | N192: NPS5D17C20 | O192: Mexico Region 1 | P192: 73 | Q192: 275643 | R192: Male
M193: NPS5D17C20Mexico Region 174Male | N193: NPS5D17C20 | O193: Mexico Region 1 | P193: 74 | Q193: 297638 | R193: Male
M194: NPS5D17C20Mexico Region 175Male | N194: NPS5D17C20 | O194: Mexico Region 1 | P194: 75 | Q194: 321391 | R194: Male
M195: NPS5D17C20Mexico Region 176Male | N195: NPS5D17C20 | O195: Mexico Region 1 | P195: 76 | Q195: 347045 | R195: Male
M196: NPS5D17C20Mexico Region 177Male | N196: NPS5D17C20 | O196: Mexico Region 1 | P196: 77 | Q196: 374752 | R196: Male
M197: NPS5D17C20Mexico Region 178Male | N197: NPS5D17C20 | O197: Mexico Region 1 | P197: 78 | Q197: 404675 | R197: Male
M198: NPS5D17C20Mexico Region 179Male | N198: NPS5D17C20 | O198: Mexico Region 1 | P198: 79 | Q198: 420832 | R198: Male
M199: NPS5D17C20Mexico Region 180Male | N199: NPS5D17C20 | O199: Mexico Region 1 | P199: 80 | Q199: 437638 | R199: Male
M200: NPS5D17C20Mexico Region 181Male | N200: NPS5D17C20 | O200: Mexico Region 1 | P200: 81 | Q200: 455114 | R200: Male
... 4300 more rows
